Cogmind - Beta 11 X2 @@@ ROGUE MODE // 2021.02.14 @ 17:06:51 Player: MTF Result: Destroyed by Architect with Modified Quantum Sheargun Performance ------------- Evolutions (9) 4500 Regions Visited (31) 6200 Robots Destroyed (694) 3470 Value Destroyed (41293) 41293 Prototype IDs (88) 1760 Alien Tech Used (15) 3000 Bonus (37080) 37080 TOTAL SCORE: 97303 Bonus ------- High Alert Combat Kills 7187 Follower Combat Kills 2270 Entered Garrisons 1200 Used RIF Installer 3000 Network Hubs Disabled 800 Aligned with FarCom 300 Met R17 at Cetus 500 Met Sigix 2000 Destroyed MAIN.C Guards 500 Met MAIN.C 5000 Destroyed MAIN.C Shell 5000 Destroyed MAIN.C 10000 Met Architect 300 Destroyed A8 300 Destroyed A6 400 Destroyed A5 500 Destroyed A4 700 Friendly Fire -2877 Cogmind --------- Core Integrity 0/1600 Matter 155/300 Energy 699/700 System Corruption 3% Temperature Cool (0) Movement Core (50) Location -1/Access_0 Parts ------- > --- POWER (2) -------- (None) > --- PROPULSION (6) --- Advanced Myomer Leg Advanced Myomer Leg High-density Centrium Leg High-density Centrium Leg High-density Centrium Leg High-density Centrium Leg > --- UTILITY (15) ----- Experimental Energy Well Spectral Analyzer Advanced Targeting Computer Advanced Armor Integrity Analyzer > --- WEAPON (2) ------- (None) > --- INVENTORY (7) ---- Improved Quantum Reactor Experimental Energy Well (600) Quantum Capacitor Advanced Focal Shield Compact Linear Accelerator Peak State ------------ > --- POWER ------------ Vortex Chain Reactor > --- PROPULSION ------- Centrium Heavy Treads Experimental Biometal Heavy Treads Experimental Biometal Heavy Treads > --- UTILITY ---------- Experimental Cooling System Cargo Storage Unit Experimental Energy Well Quantum Shading Machine Experimental Optical Array Advanced Target Analyzer Advanced Armor Integrity Analyzer Quantum Capacitor Heavy Regenerative Plating Experimental Force Field Matter Drive > --- WEAPON ----------- Multirail Longsword +1 > --- INVENTORY -------- Vortex Chain Reactor Biometal Heavy Treads Biometal Heavy Treads Experimental Coolant Injector Improved Energy Well Experimental Energy Well Experimental Matter Compressor Quantum Capacitor Microactuators Heavy Regenerative Plating EM Dispersion Field Antimissile System Long-range Tractor Beam Transdimensional Reconstructor Core Regenerator Integrity Redistributor Integrity Redistributor Spacefold Activator Latent Energy Streamer EMDS Potential Cannon Improved Potential Cannon Multirail [Rating: 247] Favorites ----------- Power Vortex Chain Reactor Engine Reinforced Deuterium Engine Power Core Micro Fission Core Reactor Vortex Chain Reactor Propulsion Centrium Heavy Treads Treads Centrium Heavy Treads Leg Aluminum Leg Utility Advanced Armor Integrity Analyzer Device Quantum Capacitor Storage Cargo Storage Unit Processor Advanced Armor Integrity Analyzer Hackware Relay Coupler [NC] Protection Centrium Heavy Armor Plating Artifact Phase Armor Weapon Improved KE Penetrator Energy Gun Heavy EM Shotgun Energy Cannon EMDS Ballistic Gun Improved KE Penetrator Launcher Grenade Launcher Special Weapon Advanced Remote Datajack Impact Weapon Core Stripper Slashing Weapon Longsword +1 Special Melee Weapon Improved Datajack Build | -11 -10 -10 -10 -9 -8 -8 -8 -8 -7 -7 -6 -6 -6 -6 -6 -5 -5 -5 -5 -5 -5 -4 -4 -3 -3 -2 -2 -2 -1 -1 -1 ------- Run | Scr Mat Min Exi Min Mat Gar Mat Gar Fac Gar Fac Ext Cet Arc Hub Fac Was Fac Gar Fac Gar Fac Gar Res Qua Res Tes Sec Acc Com Ac0 Slots Evolved 18 | . . . . . 4 . . . 2 . 2 . . . . 2 . . . . . 2 . 2 . 2 . . 2 . . Power 1 | . . . . . . . . . 1 . . . . . . . . . . . . . . . . . . . . . . Propulsion 4 | . . . . . 2 . . . . . 1 . . . . 1 . . . . . . . . . . . . . . . Utility 13 | . . . . . 2 . . . 1 . 1 . . . . 1 . . . . . 2 . 2 . 2 . . 2 . . Weapon . | . . . . . . . . . . . . . . . . . . . . . . . . . . . . . . . . Parts Attached 846 | 1 17 1 15 8 10 6 44 7 24 18 28 27 14 3 25 2 18 16 5 13 7 29 7 27 59 60 78 76 22 129 50 Power 44 | . . . 1 . . . 4 1 1 3 2 1 2 . . . . . 1 . 1 4 1 3 9 2 2 . . 2 4 Engine 7 | . . . . . . . 1 1 1 1 . 1 . . . . . . 1 . 1 . . . . . . . . . . Core 14 | . . . 1 . . . 3 . . 2 2 . . . . . . . . . . . . 3 3 . . . . . . Reactor 23 | . . . . . . . . . . . . . 2 . . . . . . . . 4 1 . 6 2 2 . . 2 4 Propulsion 76 | . 5 . 2 1 4 1 5 . 5 1 2 2 2 . . 1 . 3 . 2 . 2 . 1 4 2 5 4 . 10 12 Treads 66 | . 4 . 2 1 3 1 5 . 5 1 2 2 2 . . 1 . 3 . 2 . 2 . 1 4 2 5 4 . 10 4 Leg 10 | . 1 . . . 1 . . . . . . . . . . . . . . . . . . . . . . . . . 8 Wheel . | . . . . . . . . . . . . . . . . . . . . . . . . . . . . . . . . Hover . | . . . . . . . . . . . . . . . . . . . . . . . . . . . . . . . . Flight . | . . . . . . . . . . . . . . . . . . . . . . . . . . . . . . . . Utility 369 | 1 2 . 5 . 4 2 9 2 8 5 7 8 5 2 7 1 16 2 . 2 1 11 . 12 19 26 50 42 12 86 22 Device 206 | 1 . . 1 . 1 . 1 1 2 1 4 6 3 2 5 1 4 . . . . 5 . 4 12 23 36 26 9 54 4 Storage 29 | . 1 . 4 . 1 . . . . . . 1 . . . . 3 . . 1 . . . . . 1 4 5 2 5 1 Processor 15 | . 1 . . . 1 . . . . . . . . . . . . 1 . . . 1 . . 2 . 1 1 . 7 . Hackware 15 | . . . . . . . . . 3 1 2 1 . . . . . . . . . 2 . 2 1 1 . 1 1 . . Protection 94 | . . . . . 1 2 8 1 3 3 1 . 2 . 2 . 9 1 . 1 1 3 . 6 3 1 5 6 . 18 17 Artifact 10 | . . . . . . . . . . . . . . . . . . . . . . . . . 1 . 4 3 . 2 . Weapon 357 | . 10 1 7 7 2 3 26 4 10 9 17 16 5 1 18 . 2 11 4 9 5 12 6 11 27 30 21 30 10 31 12 Energy Gun 20 | . 4 . . . . . 11 2 . 1 1 . . . . . . . . . . . . . . . 1 . . . . Energy Cannon 124 | . . . . 2 . 1 4 . 4 2 2 1 . . 4 . 1 2 1 3 . 4 1 5 10 16 14 18 4 13 12 Ballistic Gun 111 | . 3 1 3 3 2 1 3 . 2 3 7 8 3 1 8 . 1 6 2 5 2 5 2 2 11 8 3 . 4 12 . Ballistic Cannon . | . . . . . . . . . . . . . . . . . . . . . . . . . . . . . . . . Launcher 44 | . 3 . 2 1 . 1 6 2 1 2 2 1 1 . . . . 1 1 1 3 2 3 3 2 3 . . . 3 . Special Weapon 13 | . . . . . . . . . . . . . . . . . . . . . . 1 . 1 2 2 1 5 1 . . Impact Weapon 1 | . . . . . . . . . . . . . . . . . . . . . . . . . . . 1 . . . . Slashing Weapon 43 | . . . 2 1 . . 2 . 3 1 4 6 1 . 6 . . 2 . . . . . . 2 1 1 7 1 3 . Piercing Weapon . | . . . . . . . . . . . . . . . . . . . . . . . . . . . . . . . . Special Melee Weapon 1 | . . . . . . . . . . . 1 . . . . . . . . . . . . . . . . . . . . Unidentified Prototypes 67 | . . . . 1 1 . 3 . . . 1 1 4 . . . . 1 . . . . . . 10 4 18 8 . 10 5 Parts Lost 53 | . . . 5 2 . . 1 1 . 1 . . . . . . . 3 . 2 . 4 . 4 . . 3 2 . 8 17 Power 8 | . . . 1 . . . . . . . . . . . . . . . . 1 . 2 . 2 . . . . . 1 1 Propulsion 7 | . . . 2 1 . . . . . . . . . . . . . . . . . . . . . . . . . . 4 Utility 24 | . . . . . . . . . . 1 . . . . . . . 1 . . . 1 . 1 . . 2 2 . 6 10 Weapon 14 | . . . 2 1 . . 1 1 . . . . . . . . . 2 . 1 . 1 . 1 . . 1 . . 1 2 Highest Loss Streak 8 | . . . 4 1 . . 1 1 . 1 . . . . . . . 3 . 1 . 2 . 1 . . 1 2 . 6 8 Average Slot Usage (%) 76 | . 99 100 97 100 89 93 96 97 85 91 92 93 81 80 80 82 77 80 82 81 72 72 67 69 68 69 69 65 64 65 70 Engine 2 | . 14 14 11 . . . 1 7 8 8 . 1 6 6 6 5 5 5 9 11 9 . . . . . . . . . . Core 2 | . . . 1 14 9 9 7 1 . 6 12 10 . . . . . . . . . . . 2 4 1 . . . . . Reactor 3 | . . . . . . . . . . . . . 5 6 6 5 5 5 1 . . 7 10 4 3 6 7 4 4 3 4 Treads 18 | . 23 28 27 28 31 36 35 36 29 30 33 33 21 20 20 17 17 16 17 17 17 14 15 14 13 13 12 13 12 11 11 Device 11 | . 3 . . . . . . . 3 7 12 11 12 13 13 17 9 13 11 11 11 12 10 11 8 16 15 14 16 14 14 Storage 7 | . 14 14 19 28 12 9 9 9 7 7 6 6 6 6 6 5 9 5 5 5 5 5 5 4 4 4 4 4 11 8 4 Processor 10 | . 9 14 7 . 9 9 9 9 7 7 6 6 6 6 6 5 5 8 11 11 11 10 10 9 13 13 13 12 8 12 13 Hackware 1 | . . . . . . . . . 3 . . 1 . . . . . . . . . 3 . 4 3 4 4 4 4 . . Protection 7 | . . . . . 5 12 15 17 6 6 6 6 6 6 6 11 9 11 11 10 5 5 5 5 4 4 1 6 4 10 18 Energy Gun 1 | . 12 . . . . . 13 10 7 2 . . . . . . . . . . . . . . . . . . . . . Energy Cannon 1 | . . . . . . 1 . . 4 1 1 . 1 . . . . . . . . 4 1 3 2 3 3 2 3 1 3 Ballistic Gun 5 | . 15 21 21 23 17 15 3 . 2 6 9 10 11 12 11 11 10 9 9 10 7 5 4 2 2 . 1 . 1 . . Naked Turns . | . . . . . . . . . . . . . . . . . . . . . . . . . . . . . . . . Heaviest Build 285 | 13 31 31 51 58 82 85 85 73 77 82 92 96 110 110 114 111 134 111 104 206 202 229 227 232 241 247 285 257 258 279 140 Greatest Support 275 | 20 46 46 46 46 83 83 107 107 112 112 132 124 188 188 188 240 240 240 240 240 240 240 240 240 235 260 270 275 265 270 230 Greatest Overweight (x) 90 | . . . 1 2 . 1 1 . . . . . . . . . . . . . . 1 . 1 1 1 1 1 . 90 . Average Overweight (x) . | . . . . 1 . . . . . . . . . . . . . . . . . . . . . . . . . 3 . Largest Inventory Capacity 35 | 8 15 15 35 15 20 20 20 20 20 20 20 20 20 20 20 20 20 20 20 30 30 30 30 30 30 30 30 32 32 32 12 Average Capacity 25 | 8 9 15 14 15 15 20 20 20 20 20 20 20 20 20 20 20 20 20 20 20 30 30 30 30 30 30 30 30 32 30 11 Most Carried 32 | 6 15 15 15 15 16 20 20 20 20 20 20 20 20 20 20 18 19 20 20 20 23 30 30 30 30 30 30 32 32 32 12 Average Carried 24 | 6 8 14 13 13 14 19 19 19 19 19 19 19 19 20 19 15 18 18 19 19 21 24 29 28 29 29 29 30 31 29 10 Final Capacity 32 | 8 15 15 15 15 20 20 20 20 20 20 20 20 20 20 20 20 20 20 20 30 30 30 30 30 30 30 30 32 32 12 7 Final Carried 31 | 6 14 15 13 15 16 20 20 19 20 20 20 20 20 20 18 15 19 18 20 20 23 30 30 30 30 30 30 31 31 12 6 Class Distribution -------------------- 48% | Hauler-Mutant 22% | Scavenger-Mutant 22% | Mutant 5% | Bothacker-Mutant Dominant Class ---------------- Mutant | -10/Materials Mutant | -10/Mines Mutant | -10/Exiles Mutant | -9/Mines Mutant | -8/Materials Scavenger-Mutant | -8/Garrison Mutant | -8/Materials Mutant | -8/Garrison Mutant | -7/Factory Scavenger-Mutant | -7/Garrison Mutant | -6/Factory Scavenger-Mutant | -6/Extension Commander-Mutant | -6/Cetus Scavenger-Mutant | -6/Archives Scavenger-Mutant | -6/Hub_04(d) Scavenger-Mutant | -5/Factory Scavenger-Mutant | -5/Waste Scavenger-Mutant | -5/Factory Scavenger-Mutant | -5/Garrison Scavenger-Mutant | -5/Factory Scavenger-Mutant | -5/Garrison Scavenger-Mutant | -4/Factory Hauler-Mutant | -4/Garrison Hauler-Mutant | -3/Research Hauler-Mutant | -3/Quarantine Hauler-Mutant | -2/Research Bothacker-Mutant | -2/Testing Hauler-Mutant | -2/Section 7 Hauler-Mutant | -1/Access Hauler-Mutant | -1/Command Mutant | -1/Access_0 Resources | -11 -10 -10 -10 -9 -8 -8 -8 -8 -7 -7 -6 -6 -6 -6 -6 -5 -5 -5 -5 -5 -5 -4 -4 -3 -3 -2 -2 -2 -1 -1 -1 ----------- Run | Scr Mat Min Exi Min Mat Gar Mat Gar Fac Gar Fac Ext Cet Arc Hub Fac Was Fac Gar Fac Gar Fac Gar Res Qua Res Tes Sec Acc Com Ac0 Matter Collected 25590 | 210 398 77 192 184 284 222 775 301 332 492 670 803 204 114 975 . 624 873 256 816 331 553 164 576 1759 2567 2481 2828 1462 3764 303 Remotely 3905 | . . . . . . . . . . . . . . . . . . . . . . . . . . 914 519 744 130 1598 . Salvage Created 39818 | 114 378 115 103 436 245 235 1373 448 532 740 586 1476 175 189 2636 4 1359 1697 424 1414 567 1110 375 1044 2284 3471 3375 4425 3427 3909 1152 Parts 1522 | 5 36 7 3 24 12 13 61 23 30 34 18 58 10 5 104 . 22 72 24 58 28 42 14 53 104 130 95 152 109 116 60 Haulers Intercepted 22 | . 2 . . . . . 2 . 2 . . 1 . . 1 . . 3 . 1 . 1 . . . 4 2 2 1 . . Recyclers Shooed 22 | . . 2 . . . . 1 . 1 . 3 4 . . 1 . . . . 3 . 2 . 2 . 2 . . 1 . . Parts Field Recycled . | . . . . . . . . . . . . . . . . . . . . . . . . . . . . . . . . Retrieved Matter . | . . . . . . . . . . . . . . . . . . . . . . . . . . . . . . . . Parts Self-Destructed . | . . . . . . . . . . . . . . . . . . . . . . . . . . . . . . . . Prevented . | . . . . . . . . . . . . . . . . . . . . . . . . . . . . . . . . Kills | -11 -10 -10 -10 -9 -8 -8 -8 -8 -7 -7 -6 -6 -6 -6 -6 -5 -5 -5 -5 -5 -5 -4 -4 -3 -3 -2 -2 -2 -1 -1 -1 ------- Run | Scr Mat Min Exi Min Mat Gar Mat Gar Fac Gar Fac Ext Cet Arc Hub Fac Was Fac Gar Fac Gar Fac Gar Res Qua Res Tes Sec Acc Com Ac0 Combat Hostiles Destroyed 556 | . 12 3 4 9 5 8 25 15 7 14 10 13 3 2 34 . 5 20 9 20 26 17 14 19 29 42 39 47 39 44 22 Melee 6 | . . . 1 . . . . . 1 . . . . . . . . 1 . . . . . . 2 . . . . 1 . Guns 200 | . 5 2 1 5 5 2 8 5 3 10 7 12 . 2 28 . 5 19 6 18 6 5 2 1 15 9 4 . 10 5 . Cannons 110 | . . . . . . 2 3 . . . . . . . . . . . . . . 6 1 10 9 8 22 20 7 14 8 AOE 134 | . 7 1 2 4 . 4 13 10 3 2 2 1 2 . 3 . . . 3 2 20 6 10 7 3 8 . . 4 9 8 Classes Destroyed 24 | 2 5 1 1 1 2 . 3 . 1 . . 1 . . 1 . 1 . . . . . . . 1 . 3 . . 1 . Worker 29 | . . . . 1 . . 1 . 5 . . . . . 12 . . 1 . . . 1 . . 1 4 . 2 1 . . Builder 14 | . . 1 . . . . . . 2 . 1 1 . . 1 . . 3 . . . 1 . . 1 . . 3 . . . Tunneler 6 | 1 . . . 1 . . . . . . . . . . 2 . . 1 . . . . . 1 . . . . . . . Hauler 22 | . 2 . . . . . 2 . 2 . . 1 . . 1 . . 3 . 1 . 1 . . . 4 2 2 1 . . Recycler 11 | 1 . . . . . . 1 . 1 . 1 4 . . . . . . . 1 . . . . . 1 . . 1 . . Mechanic 4 | . . . . . . . 1 . . . . . . . . . . 1 . . . 1 . . 1 . . . . . . Operator 7 | . 1 . . . . . 1 . 1 . . . . . 1 . . . . 1 . . . . . 1 . . 1 . . Watcher 44 | . 3 . . . . . 3 . . . . . . . 3 . . 3 . 3 . 1 . . 3 4 3 5 8 5 . Swarmer 90 | . 6 . . 4 . 4 . 4 . . 3 1 2 . . . . . 3 4 17 . 7 5 . 9 5 . 6 10 . Saboteur 1 | . . . . . . . . . . . . . . . . . . . . . . . . . . . 1 . . . . Grunt 208 | . 6 3 . 5 1 2 17 10 4 10 6 7 . . 16 . . 8 3 10 8 7 6 7 11 11 14 13 20 3 . Brawler 11 | . . . . . . . 2 1 . . . . . . 2 . . . . . 1 . . . 1 2 1 . . 1 . Duelist 7 | . . . . . . . 1 . . . . 1 . . . . . . . . . 1 . . 1 2 . 1 . . . Protector 4 | . . . . . . . . . . . . . . . 2 . . . . . . . . . 1 1 . . . . . Sentry 53 | . . . . . 2 2 4 . . 1 1 3 . 2 9 . . 2 2 1 . 2 . 3 . 3 1 8 4 3 . Demolisher 1 | . . . . . . . . . . . . . . . . . . . . . . . . . . . . . . 1 . Specialist 5 | . . . . . . . . . . . . . . . . . . . . . . . . . . . 3 . . 2 . Hunter 43 | . . . . . 2 . 1 . 1 1 . . . . 2 . . 2 . 3 . 4 . . . 6 3 7 2 9 . Programmer 80 | . . . . . . . . . 2 2 . . . . 3 . . 8 1 1 . 3 . 4 11 8 10 12 7 8 . Behemoth 5 | . . . . . . . . . . . . 1 . . . . . . . 1 . . 1 . . . . 1 . 1 . Compactor 5 | . . . . . . . . . . . . . . . . . 5 . . . . . . . . . . . . . . Cetus Guard 1 | . . . . . . . . . . . . . 1 . . . . . . . . . . . . . . . . . . S7 Guard 4 | . . . . . . . . . . . . . . . . . . . . . . . . . . . . 4 . . . M Guard 2 | . . . . . . . . . . . . . . . . . . . . . . . . . . . . . . 2 . Enhanced Grunt 6 | . . . . . . . . . . . . . . . . . . . . . . . . . . . . . . . 6 Enhanced Sentry 4 | . . . . . . . . . . . . . . . . . . . . . . . . . . . . . . . 4 Enhanced Hunter 8 | . . . . . . . . . . . . . . . . . . . . . . . . . . . . . . . 8 Lightning 3 | . . . . . . . . . . . . . . . . . . . . . . . . . 3 . . . . . . Combat Programmer 2 | . . . . . . . . . . . . . . . . . . . . . . . . . . . . . . 2 . Alpha 7 2 | . . . . . . . . . . . . . . . . . . . . . . . . . 1 . . 1 . . . Fortress 1 | . . . . . . . . . . . . . . . . . . . . . . . . . . . 1 . . . . Assembled 3 | . . . 3 . . . . . . . . . . . . . . . . . . . . . . . . . . . . Thug 1 | . . . . . . . . . . . . 1 . . . . . . . . . . . . . . . . . . . Guerrilla 1 | . . . . . . . . . . . . . . 1 . . . . . . . . . . . . . . . . . Best Kill Streak 12 | 2 8 2 3 4 2 4 9 4 7 6 2 3 2 1 9 . 2 7 3 4 10 6 4 8 11 9 6 7 12 9 4 Combat Bots Only 11 | . 8 2 3 4 2 4 6 4 4 6 2 3 2 1 6 . 2 4 3 4 10 5 4 7 8 9 6 7 11 7 4 Max Kills in Single Turn 5 | 1 2 1 2 3 1 2 5 2 3 1 1 2 1 1 5 . 1 4 2 2 5 4 2 2 3 5 1 2 5 3 2 Gunslinging 1 | . . . . . . . . . . . . 1 . . . . . 1 . . . . . . 1 . . . . . . Exploded 5 | . 2 1 2 3 . 2 3 2 2 1 1 1 1 . 3 . . . 2 1 5 3 2 2 2 5 . . 4 2 2 Melee 1 | . . . 1 . . . . . 1 . . . . . . . . 1 . . . . . . 1 . . . . 1 . Uniques/NPCs Destroyed 9 | . . . 1 1 . . . . . . . . 1 . . . . . . . . . . . . . . . . 2 4 8R-AWN (-10/Exiles) YI-UF0 (-9/Mines) A7 (-6/Cetus) MAIN.C Shell (-1/Command) MAIN.C (-1/Command) A6 (-1/Access_0) A5 (-1/Access_0) A8 (-1/Access_0) A4 (-1/Access_0) Combat | -11 -10 -10 -10 -9 -8 -8 -8 -8 -7 -7 -6 -6 -6 -6 -6 -5 -5 -5 -5 -5 -5 -4 -4 -3 -3 -2 -2 -2 -1 -1 -1 -------- Run | Scr Mat Min Exi Min Mat Gar Mat Gar Fac Gar Fac Ext Cet Arc Hub Fac Was Fac Gar Fac Gar Fac Gar Res Qua Res Tes Sec Acc Com Ac0 Damage Taken 49163 | . 167 132 818 214 640 282 1167 327 482 594 572 363 210 20 1489 . . 1596 288 2016 266 1569 481 1479 1769 2167 3590 2317 737 11704 11707 Core 3256 | . 19 26 169 . 27 5 118 32 26 15 . . 12 . 60 . . 49 . 102 35 57 13 79 217 105 610 239 21 355 865 Absorbed by Shields 11030 | . . . . . . . . 4 . . 51 357 55 20 1186 . . 212 . . . . 74 . . . 286 835 610 5181 2159 Reduced by Siege Mode 2655 | . . . . . . . . . . . . . . . 42 . . 97 6 125 . 53 5 56 73 110 290 143 9 1300 346 Redirected to Core 508 | . . . . . . . . . . . . . . . . . . . . . . . . . 96 . 412 . . . . Core Remaining (%) 72 | 100 . . . 14 . . . 66 . 94 . . . . 91 . . . . . 81 . 93 . 77 . . 34 . . . Volleys Fired 2070 | 6 48 8 5 15 27 21 69 22 24 39 33 59 14 11 121 7 45 80 31 89 25 52 26 70 140 122 159 226 116 152 208 Largest 2 | 2 2 2 2 2 2 2 2 2 2 2 2 2 2 2 2 1 2 2 2 2 2 2 1 2 2 2 2 1 2 2 1 Hottest 200 | 80 90 46 46 60 46 70 100 100 113 113 113 113 70 70 90 35 90 90 90 90 70 125 90 125 113 120 120 70 90 200 200 Shots Fired 2884 | 12 88 15 6 29 54 32 110 28 38 67 64 115 15 21 225 7 86 151 48 162 34 72 26 82 193 143 175 224 150 204 208 Gun 1654 | 12 81 14 3 27 54 24 85 16 31 54 60 112 2 21 208 7 83 145 38 151 23 27 10 16 105 43 30 . 68 104 . Cannon 1099 | . . . . 2 . 5 9 . 4 11 2 2 11 . 17 . 3 5 8 9 . 34 5 51 83 86 145 220 79 100 208 Launcher 104 | . 7 1 3 . . 3 16 12 3 2 2 1 2 . . . . 1 2 2 11 10 11 5 2 8 . . . . . Special 27 | . . . . . . . . . . . . . . . . . . . . . . 1 . 10 3 6 . 4 3 . . Kinetic 1487 | . 42 14 3 27 54 24 22 . 17 35 58 110 2 21 208 7 83 145 38 151 23 27 10 16 105 43 30 . 68 104 . Thermal 622 | 12 39 . . . . . . . . . . . . . 17 . 3 5 8 9 . 34 5 51 76 14 85 68 . 32 164 Explosive 104 | . 7 1 3 . . 3 16 12 3 2 2 1 2 . . . . 1 2 2 11 10 11 5 2 8 . . . . . Electromagnetic 644 | . . . . 2 . 5 72 16 18 30 4 4 11 . . . . . . . . . . . 7 72 60 152 79 68 44 Robot Hit Streak 82 | 3 12 4 2 5 21 32 38 15 18 29 25 28 8 17 28 . 29 28 61 62 14 26 10 13 45 69 79 82 23 35 15 Robot Miss Streak 7 | 4 5 1 1 2 2 . 3 2 4 3 4 7 1 1 2 . 1 2 . 4 1 2 4 1 3 1 1 1 2 3 3 Penetration Max 1 | . . . . . . . . . . . . . . 1 1 . 1 1 . 1 . 1 . 1 1 1 1 1 1 1 . Secondary Targets 27 | . . . . . . . . . . 2 . 1 . . 2 . 1 5 . 2 . . . . 3 3 3 . 3 2 . Max Gunslinging Chain 1 | . . . . . . . . . . 1 . 1 . . 1 . 1 1 . 1 . . . . 1 1 1 . 1 1 . Capacitor 978 | . . . . . . . . . . . . . . . . . . . . . . 21 5 41 83 86 144 220 79 91 208 Shots Hit Robots 2377 | 6 51 9 37 17 45 27 96 18 37 57 60 112 16 18 146 . 75 119 43 125 20 62 15 60 149 127 149 191 129 210 151 Core Hits 1528 | 3 27 8 12 15 12 12 77 26 32 45 76 149 8 10 94 . 13 54 16 51 41 49 27 40 84 77 66 71 69 162 102 Critical Hits 298 | . . . 1 . . . 1 . 1 3 1 . 1 3 35 . 12 24 8 25 3 10 . 4 18 25 17 27 18 28 33 Critical Kills 84 | . . . . . . . 1 . . 1 . . . . 14 . 2 8 4 8 1 5 . . 7 6 5 9 4 6 3 Critical Parts Destroyed 166 | . . . . . . . . . 1 2 . . 1 3 17 . 3 16 4 17 2 5 . 3 11 19 12 9 14 10 17 Melee Attacks 140 | . . . 35 1 . . 2 . 6 1 9 14 3 . 12 . . 2 . . . . . . 17 1 3 3 1 30 . Kinetic 3 | . . . . . . . . . . . . . . . . . . . . . . . . . . . 3 . . . . Impact . | . . . . . . . . . . . . . . . . . . . . . . . . . . . . . . . . Slashing 133 | . . . 35 1 . . 2 . 6 1 5 14 3 . 12 . . 2 . . . . . . 17 1 . 3 1 30 . Piercing . | . . . . . . . . . . . . . . . . . . . . . . . . . . . . . . . . Sneak Attacks 11 | . . . . 1 . . . . . . 4 2 3 . 1 . . . . . . . . . . . . . . . . Combat Hostiles . | . . . . . . . . . . . . . . . . . . . . . . . . . . . . . . . . Follow-up Attacks . | . . . . . . . . . . . . . . . . . . . . . . . . . . . . . . . . Damage Inflicted 133251 | 67 1236 201 1807 734 617 681 3351 1279 1772 1349 1751 3114 933 542 6506 . 2023 3953 993 3998 2466 3662 2164 2848 5804 7525 6319 8445 6871 15807 34433 Guns 36116 | 67 653 126 13 201 617 319 1380 301 507 851 1344 2679 23 542 4226 . 2023 3716 729 3568 326 559 50 334 2401 1297 833 . 2192 4239 . Cannons 51562 | . . . . 13 . 105 242 . 84 212 43 55 224 . . . . . . . . 1176 161 1311 1904 4683 5396 8445 4085 5227 18196 Explosions 39820 | . 583 59 210 390 . 257 1729 978 988 286 340 61 352 . 2077 . . 155 264 378 2140 1927 1953 1203 783 1521 . . 580 4380 16226 Melee 4696 | . . . 1584 109 . . . . 141 . . 293 334 . 164 . . . . . . . . . 695 . 90 . . 1286 . Ramming 1057 | . . 16 . 21 . . . . 52 . 24 26 . . 39 . . 82 . 52 . . . . 21 24 . . 14 675 11 Kinetic 33713 | . 426 126 13 201 617 319 234 . 235 470 1300 2624 23 542 4226 . 2023 3716 729 3568 326 559 50 334 2401 1297 923 . 2192 4239 . Thermal 52350 | 67 227 . . . . . 415 . 603 61 . 61 . . . . . . . . . 1176 161 1311 1658 342 3070 2773 . 6710 33715 Explosive 15607 | . 583 59 210 . . 257 1314 978 385 225 340 . 352 . . . . 155 264 378 2140 1927 1953 1203 783 1521 . . 580 . . Electromagnetic 25918 | . . . . 403 . 105 1388 301 356 593 87 110 224 . 2077 . . . . . . . . . 246 4341 2326 5672 4085 2897 707 Impact . | . . . . . . . . . . . . . . . . . . . . . . . . . . . . . . . . Slashing 4606 | . . . 1584 109 . . . . 141 . . 293 334 . 164 . . . . . . . . . 695 . . . . 1286 . Piercing . | . . . . . . . . . . . . . . . . . . . . . . . . . . . . . . . . Highest Corruption 29 | . 1 1 1 5 . . 2 2 1 3 . 1 1 1 4 . 6 13 13 16 16 2 2 4 8 6 9 13 1 29 3 Average Corruption 9 | . 1 1 1 2 . . 2 2 1 2 . 1 1 1 1 . 6 9 13 14 16 1 2 3 5 4 7 11 1 23 1 Corruption Purged 29 | . . . . . . . . . . . . . . . . . . . . . . . . . . . . . . 29 . Effects 996 | . . 1 8 10 . . 12 4 1 5 . 2 3 . 19 . 10 48 18 53 27 . 4 8 81 43 109 116 1 405 8 Message Errors 252 | . . . 3 2 . . 5 3 . . . 1 2 . 6 . 2 9 3 10 9 . 3 2 18 11 30 23 . 106 4 Matter Fused 210 | . . . . 1 . . . . . 3 . . . . 1 . 2 12 3 8 4 . . 2 19 10 30 20 . 95 . Heat Flow Errors 124 | . . . . 3 . . . . . 1 . . . . 4 . 1 6 5 5 1 . . 1 18 9 18 15 . 37 . Energy Discharges 112 | . . 1 . 1 . . 4 . 1 1 . . . . 4 . . 4 2 4 3 . . . 7 7 11 11 . 48 3 Parts Rejected 5 | . . . . . . . . . . . . . . . . . . . . . . . . . 1 . 2 2 . . . Data Loss (minor) 125 | . . . 5 2 . . 1 1 . . . . 1 . 4 . 2 4 1 10 2 . 1 3 11 3 10 13 1 49 1 Data Loss (major) 40 | . . . . . . . . . . . . . . . . . 2 5 . 4 1 . . . 3 1 3 5 . 16 . Misfires 18 | . . . . 1 . . . . . . . . . . . . . . . 1 1 . . . 3 1 3 5 . 3 . Alerts 14 | . . . . . . . . . . . . . . . . . . 2 1 1 . . . . . . . 1 . 9 . Misdirections 67 | . . . . . . . . . . . . . . . . . . 3 2 5 4 . . . . . . 14 . 39 . Weapon Failures 29 | . . . . . . . 2 . . . . 1 . . . . 1 3 1 5 2 . . . 1 1 2 7 . 3 . Overload Shots . | . . . . . . . . . . . . . . . . . . . . . . . . . . . . . . . . Overflow Damage 5806 | . 4 . 29 . . 5 47 13 87 8 35 123 124 . 237 . . 2 . . 19 188 120 7 152 292 168 202 155 1583 2206 Projectiles 2691 | . . . . . . . . . . 4 . . . . . . . . . . . 66 . . 129 292 168 202 110 691 1029 Explosions 2688 | . 4 . 29 . . 5 47 13 85 4 35 . 52 . 113 . . . . . 19 122 120 7 23 . . . 45 788 1177 Melee 427 | . . . . . . . . . 2 . . 123 72 . 124 . . 2 . . . . . . . . . . . 104 . Knockbacks 7 | . . . . . . . . . . . . 1 . . . . . 1 . . . . . . 1 . . . . 4 . Impact 7 | . . . . . . . . . . . . 1 . . . . . 1 . . . . . . 1 . . . . 4 . Kinetic . | . . . . . . . . . . . . . . . . . . . . . . . . . . . . . . . . Secondary . | . . . . . . . . . . . . . . . . . . . . . . . . . . . . . . . . Self-Inflicted Damage 1624 | . . 23 67 . . 34 196 3 166 . . 71 . . 156 . . . . . 41 166 41 . . . . . 89 150 421 Shots 33 | . . 1 2 . . 2 4 1 3 . . 1 . . 2 . . . . . 2 5 1 . . . . . 1 2 6 Rammed 79 | . . 3 . 10 . . . . 5 . 3 1 . . 6 . . 6 . 2 . . . . 1 . . . 1 40 1 Targets Rammed 88 | . . 4 . 11 . . . . 6 . 4 1 . . 7 . . 8 . 2 . . . . 2 1 . . 1 40 1 Kicked . | . . . . . . . . . . . . . . . . . . . . . . . . . . . . . . . . Crushed 9 | . . 1 . 1 . . . . 1 . 1 . . . 1 . . 2 . . . . . . 1 1 . . . . . Highest Temperature 389 | 90 252 31 3 282 135 153 320 20 144 260 126 230 44 281 306 . 167 246 145 239 257 322 198 198 231 374 389 255 . 262 209 Average Temperature 75 | 42 53 15 3 83 51 64 73 7 51 46 65 60 24 131 80 . 105 96 72 78 139 111 41 93 74 92 99 46 . 90 74 Received Heat Transfer 4454 | . 60 63 . 63 117 99 432 141 54 225 212 84 31 . 275 . . 269 81 321 54 159 21 240 291 171 213 137 88 253 300 Effects 6 | . . . . . . . 1 . . . . 1 . . . . . . . . . . . . . 1 3 . . . . Energy Bleed 3 | . . . . . . . 1 . . . . 1 . . . . . . . . . . . . . 1 . . . . . Interference 3 | . . . . . . . . . . . . . . . . . . . . . . . . . . . 3 . . . . Siege Activations 65 | . . . . . . . . . . . . . . . 7 . . 6 2 3 . 2 2 3 6 5 6 8 4 5 6 Total Turns 1295 | . . . . . . . . . . . . . . . 82 . . 66 45 69 . 28 9 60 253 82 95 84 32 259 131 Longest Duration 201 | . . . . . . . . . . . . . . . 27 . . 28 31 45 . 19 5 40 201 38 50 24 19 148 58 Robots Corrupted 123 | . . . . . . . 1 . . 2 1 . 1 . 5 . . . . . . . . . . 24 13 31 23 16 6 Combat Hostiles 102 | . . . . . . . 1 . . 2 1 . 1 . 3 . . . . . . . . . . 17 12 27 18 14 6 Parts Fried 253 | . . . . . . 1 10 3 1 3 2 1 2 . 17 . . 1 . . . . . . . 45 26 53 56 26 6 Impact Corruptions 6 | . . . . . . . . . . . . . . . 1 . . 1 . . . . . . . . . . . 4 . Robots Melted 2 | . . . . . . . . . . . . . . . . . . . . . . . . 1 . . . . . 1 . Combat Hostiles 2 | . . . . . . . . . . . . . . . . . . . . . . . . 1 . . . . . 1 . Parts Melted 42 | . 2 . . . . . . . 1 . . 1 . . . . . . . . . 2 . 8 . . 11 16 . . 1 Heat Transferred 26660 | 150 607 . . . . . 400 . 350 50 . 50 . . . . . . . . . 1509 250 1594 1554 296 2738 2294 . 3229 11589 Parts Sabotaged 3 | . . . . . . . . . . . . . . . . . . . . . . . 3 . . . . . . . . Parts Stolen . | . . . . . . . . . . . . . . . . . . . . . . . . . . . . . . . . Parts Stripped . | . . . . . . . . . . . . . . . . . . . . . . . . . . . . . . . . Power Chain Reactions 10 | . . . . . . . 6 . 2 1 . 1 . . . . . . . . . . . . . . . . . . . Missiles Intercepted . | . . . . . . . . . . . . . . . . . . . . . . . . . . . . . . . . Latent Energy Used 392 | . . . . 203 . . . . . . . . . . . . . . . . . . . . . . . . . 189 . LE Corruption 7 | . . . . 4 . . . . . . . . . . . . . . . . . . . . . . . . . 3 . Alert | -11 -10 -10 -10 -9 -8 -8 -8 -8 -7 -7 -6 -6 -6 -6 -6 -5 -5 -5 -5 -5 -5 -4 -4 -3 -3 -2 -2 -2 -1 -1 -1 ------- Run | Scr Mat Min Exi Min Mat Gar Mat Gar Fac Gar Fac Ext Cet Arc Hub Fac Was Fac Gar Fac Gar Fac Gar Res Qua Res Tes Sec Acc Com Ac0 Peak Influence 1629 | 10 342 86 . 165 160 316 773 915 510 728 482 543 635 332 1629 828 293 443 511 491 790 720 863 647 541 865 350 448 1197 639 . Initial 798 | . 6 11 . . 5 68 154 502 480 310 382 19 268 254 116 798 289 205 310 268 194 414 391 485 67 44 233 145 268 221 . Average 304 | 5 135 49 . 57 82 231 316 771 422 568 172 139 508 312 387 807 292 285 431 198 568 524 662 469 106 326 207 306 759 455 . Maximum Alert Level 5 | . 1 . . . . 1 3 3 2 3 2 2 2 1 5 3 1 2 2 2 3 3 3 2 2 3 1 2 4 4 . Low Security (%) 26 | 100 79 100 . 100 100 17 31 . . . 67 80 . . 6 . . 12 . 40 7 . . 11 88 39 37 20 . . . Level 1 23 | . 20 . . . . 82 42 . 25 10 15 8 21 100 73 . 100 81 35 53 6 . 9 2 10 20 62 58 16 . . Level 2 16 | . . . . . . . 24 20 74 61 17 10 78 . 3 . . 6 64 5 61 91 42 85 1 28 . 21 25 6 . Level 3 24 | . . . . . . . 1 79 . 28 . . . . 16 100 . . . . 25 8 47 . . 11 . . 52 64 . Level 4 8 | . . . . . . . . . . . . . . . . . . . . . . . . . . . . . 5 28 . Level 5 . | . . . . . . . . . . . . . . . . . . . . . . . . . . . . . . . . High Security . | . . . . . . . . . . . . . . . . . . . . . . . . . . . . . . . . Max Security . | . . . . . . . . . . . . . . . . . . . . . . . . . . . . . . . . Squads Dispatched 96 | . 3 . . 1 2 . 6 . 2 . 3 4 . . 9 . . 8 . 8 . 3 . 6 11 8 7 7 6 2 . Investigation 6 | . . . . . . . 1 . . . . 1 . . . . . 1 . 2 . . . . 1 . . . . . . Extermination 28 | . . . . . . . . . 2 . . . . . 2 . . 2 . 1 . 1 . 2 5 3 4 4 1 1 . Reinforcement 37 | . 3 . . 1 . . 3 . . . 3 3 . . 5 . . 3 . 3 . 1 . 1 2 3 1 2 3 . . Assault 9 | . . . . . . . 1 . . . . . . . 2 . . . . . . 1 . . . 2 1 . 1 1 . Garrison 16 | . . . . . 2 . 1 . . . . . . . . . . 2 . 2 . . . 3 3 . 1 1 1 . . Intercept . | . . . . . . . . . . . . . . . . . . . . . . . . . . . . . . . . Construction Impeded 11 | . . . . 1 . . 1 . . . 1 2 . . 1 . . 2 . 1 . 1 . . . . . . 1 . . Haulers Reinforced 7 | . . . . . . . . . . . 1 . . . 1 . . 1 . . . . . . . 2 . 1 1 . . Stealth | -11 -10 -10 -10 -9 -8 -8 -8 -8 -7 -7 -6 -6 -6 -6 -6 -5 -5 -5 -5 -5 -5 -4 -4 -3 -3 -2 -2 -2 -1 -1 -1 --------- Run | Scr Mat Min Exi Min Mat Gar Mat Gar Fac Gar Fac Ext Cet Arc Hub Fac Was Fac Gar Fac Gar Fac Gar Res Qua Res Tes Sec Acc Com Ac0 Distress Signals 29 | . . . . . . . 1 . . . . 3 2 1 . . . . . 1 . . . . 1 2 1 . 1 16 . Communications Jammed 96 | . . . . . . . . . . . . . . . . . . . . . . . . . 37 34 6 12 7 . . Distress Signals 95 | . . . . . . . . . . . . . . . . . . . . . . . . . 37 34 5 12 7 . . Times Spotted 835 | . 24 4 6 9 9 9 38 14 15 24 18 36 18 8 46 . 8 28 9 37 18 23 19 24 48 58 49 53 56 59 68 Peak Tracking Total 12 | . 7 2 9 4 2 4 4 4 4 8 3 5 5 2 12 . 3 4 3 5 7 5 6 7 6 6 9 5 6 9 6 Tactical Retreats 45 | . . . . . . 1 3 1 . 10 5 1 1 . 5 . 3 1 . 1 . . 2 . . . 2 1 3 2 3 Traps | -11 -10 -10 -10 -9 -8 -8 -8 -8 -7 -7 -6 -6 -6 -6 -6 -5 -5 -5 -5 -5 -5 -4 -4 -3 -3 -2 -2 -2 -1 -1 -1 ------- Run | Scr Mat Min Exi Min Mat Gar Mat Gar Fac Gar Fac Ext Cet Arc Hub Fac Was Fac Gar Fac Gar Fac Gar Res Qua Res Tes Sec Acc Com Ac0 Traps Triggered 28 | . 2 . . . . . . 1 1 . 1 . . . 2 1 . . . 4 . . 1 1 . 2 2 3 1 6 . Indirectly . | . . . . . . . . . . . . . . . . . . . . . . . . . . . . . . . . Trap Hack Attempts . | . . . . . . . . . . . . . . . . . . . . . . . . . . . . . . . . Triggered . | . . . . . . . . . . . . . . . . . . . . . . . . . . . . . . . . Disarmed . | . . . . . . . . . . . . . . . . . . . . . . . . . . . . . . . . Reprogrammed . | . . . . . . . . . . . . . . . . . . . . . . . . . . . . . . . . Reused . | . . . . . . . . . . . . . . . . . . . . . . . . . . . . . . . . Traps Extracted . | . . . . . . . . . . . . . . . . . . . . . . . . . . . . . . . . Installed . | . . . . . . . . . . . . . . . . . . . . . . . . . . . . . . . . Triggered 3 | . . . . . . . . . . 3 . . . . . . . . . . . . . . . . . . . . . Power Sources Rigged 1 | . . . 1 . . . . . . . . . . . . . . . . . . . . . . . . . . . . Exploded 4 | . . . 4 . . . . . . . . . . . . . . . . . . . . . . . . . . . . Machines | -11 -10 -10 -10 -9 -8 -8 -8 -8 -7 -7 -6 -6 -6 -6 -6 -5 -5 -5 -5 -5 -5 -4 -4 -3 -3 -2 -2 -2 -1 -1 -1 ---------- Run | Scr Mat Min Exi Min Mat Gar Mat Gar Fac Gar Fac Ext Cet Arc Hub Fac Was Fac Gar Fac Gar Fac Gar Res Qua Res Tes Sec Acc Com Ac0 Machines Disabled 149 | . . . 6 1 . 1 3 4 4 1 . 3 6 2 45 2 . 6 2 8 2 6 3 1 7 3 7 11 5 7 3 Max in Single Turn 15 | . . . 2 1 . 1 2 2 4 1 . 1 1 1 15 1 . 2 1 4 1 5 1 1 1 1 1 1 1 2 1 Garrison Access 7 | . . . . . . . . . . . . . . . 2 . . . . . . . . . 1 1 1 1 1 . . Garrison Relay 5 | . . . . . . 1 . . . 1 . . . . . . . . 1 . . . 2 . . . . . . . . Phase Generator 1 | . . . . . . . . . . . . . . . . . . . . . . . . . . . . . . 1 . Network Hub 4 | . . . . . . . . . . . . . . . 4 . . . . . . . . . . . . . . . . Energy Cycler 1 | . . . . . . . . . . . . . . . . . . . . . . . . . . . . . 1 . . Machines Sabotaged . | . . . . . . . . . . . . . . . . . . . . . . . . . . . . . . . . Garrisons Compromised . | . . . . . . . . . . . . . . . . . . . . . . . . . . . . . . . . Overloaded Fab Kills . | . . . . . . . . . . . . . . . . . . . . . . . . . . . . . . . . Fab Network Shutdowns . | . . . . . . . . . . . . . . . . . . . . . . . . . . . . . . . . Hacking | -11 -10 -10 -10 -9 -8 -8 -8 -8 -7 -7 -6 -6 -6 -6 -6 -5 -5 -5 -5 -5 -5 -4 -4 -3 -3 -2 -2 -2 -1 -1 -1 --------- Run | Scr Mat Min Exi Min Mat Gar Mat Gar Fac Gar Fac Ext Cet Arc Hub Fac Was Fac Gar Fac Gar Fac Gar Res Qua Res Tes Sec Acc Com Ac0 Machines Accessed 136 | . 7 . 2 . 6 . 9 . 7 . 4 10 . . 11 . . 6 . 7 . 6 . 4 14 8 11 17 5 2 . Terminals 88 | . 5 . . . 4 . 5 . 2 . 3 10 . . 10 . . 1 . 5 . 2 . 2 10 5 6 14 2 2 . Fabricators 9 | . . . . . . . . . 2 . 1 . . . . . . 2 . 1 . . . . . . 2 . 1 . . Repair Stations 15 | . 1 . . . 1 . 2 . 2 . . . . . . . . 1 . . . 2 . 1 2 1 2 . . . . Recycling Units 4 | . 1 . . . . . 1 . . . . . . . . . . 1 . . . . . . . . . . 1 . . Scanalyzers 6 | . . . . . . . . . . . . . . . . . . . . . . 1 . . 1 1 1 2 . . . Garrison Access 12 | . . . . . 1 . 1 . 1 . . . . . 1 . . 1 . 1 . 1 . 1 1 1 . 1 1 . . Total Hacks 527 | . 22 . 2 . 13 . 33 . 18 . 9 22 . . 31 . . 37 . 54 . 33 . 21 66 22 57 60 24 3 . Successful 227 | . 9 . 2 . 7 . 20 . 10 . 4 10 . . 15 . . 19 . 21 . 17 . 11 26 4 25 19 7 1 . Failed 299 | . 12 . . . 6 . 13 . 8 . 5 12 . . 16 . . 18 . 33 . 16 . 10 40 18 32 41 17 2 . Catastrophic 67 | . 2 . . . 1 . 2 . 1 . 1 1 . . 2 . . 5 . 5 . 6 . 3 9 8 7 10 3 1 . Database Lockouts 1 | . 1 . . . . . . . . . . . . . . . . . . . . . . . . . . . . . . Manual 211 | . 17 . 1 . 6 . 12 . 3 . 5 . . . 18 . . 17 . 32 . 5 . 13 25 10 13 18 14 2 . Terminals 336 | . 17 . . . 7 . 18 . 4 . 7 22 . . 30 . . 10 . 46 . 16 . 18 40 16 31 42 9 3 . Fabricators 34 | . . . . . . . . . 5 . 2 . . . . . . 6 . 7 . . . . . . 7 . 7 . . Repair Stations 80 | . 2 . . . 5 . 8 . 8 . . . . . . . . 15 . . . 8 . 2 15 2 15 . . . . Recycling Units 18 | . 3 . . . . . 6 . . . . . . . . . . 5 . . . . . . . . . . 4 . . Scanalyzers 31 | . . . . . . . . . . . . . . . . . . . . . . 7 . . 5 2 4 13 . . . Garrison Access 26 | . . . . . 1 . 1 . 1 . . . . . 1 . . 1 . 1 . 2 . 1 6 2 . 5 4 . . Terminal Hacks 87 | . 3 . 2 . 2 . 6 . 1 . 4 10 . . 7 . . 4 . 11 . 4 . 6 9 . 7 8 2 1 . Record 2 | . . . 1 . . . . . . . . . . . . . . . . . . . . . 1 . . . . . . Part Schematic 3 | . . . . . . . . . . . . . . . 1 . . . . 1 . . . . 1 . . . . . . Robot Analysis 4 | . 3 . . . . . . . . . 1 . . . . . . . . . . . . . . . . . . . . Prototype ID Bank 1 | . . . . . . . . . . . 1 . . . . . . . . . . . . . . . . . . . . Open Door 14 | . . . . . . . . . . . . 6 . . . . . . . . . . . 1 2 . . 4 . 1 . Branch Access Points 3 | . . . . . 1 . . . . . . . . . . . . . . 1 . . . 1 . . . . . . . Emergency Access Points 1 | . . . . . . . 1 . . . . . . . . . . . . . . . . . . . . . . . . Terminal Index 9 | . . . . . 1 . . . . . . 1 . . 1 . . 1 . 1 . 1 . 1 1 . 1 . . . . Fabricator Index 2 | . . . . . . . . . . . 1 . . . . . . . . 1 . . . . . . . . . . . Repair Station Index 1 | . . . . . . . . . . . . . . . . . . . . . . . . 1 . . . . . . . Scanalyzer Index 1 | . . . . . . . . . . . . . . . . . . . . 1 . . . . . . . . . . . Garrison Index 1 | . . . . . . . . . 1 . . . . . . . . . . . . . . . . . . . . . . Unreport Threat 16 | . . . . . . . . . . . 1 1 . . 1 . . 1 . 4 . 1 . 1 1 . 2 1 2 . . Locate Traps 9 | . . . . . . . 3 . . . . . . . 1 . . 1 . . . 1 . . 1 . 2 . . . . Recall Reinforcements 1 | . . . . . . . . . . . . . . . 1 . . . . . . . . . . . . . . . . Recall Assault 1 | . . . . . . . 1 . . . . . . . . . . . . . . . . . . . . . . . . Zone Layout 17 | . . . . . . . 1 . . . . 2 . . 2 . . 1 . 2 . 1 . 1 2 . 2 3 . . . EX-Prototype ID Bank 1 | . . . 1 . . . . . . . . . . . . . . . . . . . . . . . . . . . . Fabricator Hacks 6 | . . . . . . . . . 1 . . . . . . . . . . 2 . . . . . . 2 . 1 . . Load Schematic 3 | . . . . . . . . . . . . . . . . . . . . 1 . . . . . . 1 . 1 . . Build 3 | . . . . . . . . . 1 . . . . . . . . . . 1 . . . . . . 1 . . . . Repair Station Hacks 48 | . 2 . . . 3 . 6 . 7 . . . . . . . . 8 . . . 5 . 1 5 1 10 . . . . Scan Component 29 | . 1 . . . 2 . 3 . 4 . . . . . . . . 5 . . . 3 . 1 4 1 5 . . . . Repair 19 | . 1 . . . 1 . 3 . 3 . . . . . . . . 3 . . . 2 . . 1 . 5 . . . . Recycling Unit Hacks 3 | . . . . . . . 3 . . . . . . . . . . . . . . . . . . . . . . . . Process 1 | . . . . . . . 1 . . . . . . . . . . . . . . . . . . . . . . . . Retrieve Matter 2 | . . . . . . . 2 . . . . . . . . . . . . . . . . . . . . . . . . Scanalyzer 12 | . . . . . . . . . . . . . . . . . . . . . . 4 . . 2 . . 6 . . . Insert Component 10 | . . . . . . . . . . . . . . . . . . . . . . 2 . . 2 . . 6 . . . Analyze 2 | . . . . . . . . . . . . . . . . . . . . . . 2 . . . . . . . . . Garrison Access Hacks 19 | . . . . . 1 . 1 . 1 . . . . . 1 . . 1 . 1 . 2 . 1 3 2 . 2 3 . . Unlock Access 11 | . . . . . 1 . 1 . 1 . . . . . 1 . . 1 . 1 . 1 . 1 1 . . 1 1 . . Seal Access 4 | . . . . . . . . . . . . . . . . . . . . . . . . . 1 1 . 1 1 . . Coupler Status 4 | . . . . . . . . . . . . . . . . . . . . . . 1 . . 1 1 . . 1 . . Unauthorized Hacks 52 | . 4 . . . 1 . 4 . . . . . . . 7 . . 6 . 7 . 2 . 3 7 1 6 3 1 . . Terminals 40 | . 3 . . . 1 . 2 . . . . . . . 7 . . 2 . 6 . 2 . 3 5 1 6 2 . . . Track 19 | . 2 . . . 1 . . . . . . . . . 5 . . 1 . 2 . 1 . 1 2 . 3 1 . . . Assimilate 2 | . 1 . . . . . . . . . . . . . . . . . . 1 . . . . . . . . . . . Botnet 14 | . . . . . . . 2 . . . . . . . 1 . . 1 . 2 . 1 . 1 1 1 3 1 . . . Operators 5 | . . . . . . . . . . . . . . . 1 . . . . 1 . . . 1 2 . . . . . . Fabricators 2 | . . . . . . . . . . . . . . . . . . 1 . 1 . . . . . . . . . . . Prioritize 1 | . . . . . . . . . . . . . . . . . . . . 1 . . . . . . . . . . . Haulers 1 | . . . . . . . . . . . . . . . . . . 1 . . . . . . . . . . . . . Repair Stations 1 | . . . . . . . 1 . . . . . . . . . . . . . . . . . . . . . . . . Mechanics 1 | . . . . . . . 1 . . . . . . . . . . . . . . . . . . . . . . . . Recycling Units 6 | . 1 . . . . . 1 . . . . . . . . . . 3 . . . . . . . . . . 1 . . Reject 1 | . . . . . . . . . . . . . . . . . . 1 . . . . . . . . . . . . . Recyclers 1 | . . . . . . . . . . . . . . . . . . 1 . . . . . . . . . . . . . Mask 4 | . 1 . . . . . 1 . . . . . . . . . . 1 . . . . . . . . . . 1 . . Scanalyzers . | . . . . . . . . . . . . . . . . . . . . . . . . . . . . . . . . Garrison Access 3 | . . . . . . . . . . . . . . . . . . . . . . . . . 2 . . 1 . . . Reprogram 3 | . . . . . . . . . . . . . . . . . . . . . . . . . 2 . . 1 . . . Data Cores Recovered 4 | . . . . . . . . . 1 . . 1 . . . . . . . . . . . . . 1 . . 1 . . Used 2 | . . . . . . . . . 1 . . . . . . . . . . . . . . . . 1 . . . . . Hacking Detections 107 | . 6 . . . 5 . 9 . 5 . 4 5 . . 10 . . 4 . 5 . 4 . 3 11 8 10 12 5 1 . Full Trace Events 2 | . . . . . . . . . . . . . . . . . . 1 . . . . . . 1 . . . . . . Feedback Events . | . . . . . . . . . . . . . . . . . . . . . . . . . . . . . . . . Feedback Blocked . | . . . . . . . . . . . . . . . . . . . . . . . . . . . . . . . . Robot Schematics Acquired . | . . . . . . . . . . . . . . . . . . . . . . . . . . . . . . . . Robots Built . | . . . . . . . . . . . . . . . . . . . . . . . . . . . . . . . . Matter . | . . . . . . . . . . . . . . . . . . . . . . . . . . . . . . . . Time . | . . . . . . . . . . . . . . . . . . . . . . . . . . . . . . . . Total Robot Build Rating . | . . . . . . . . . . . . . . . . . . . . . . . . . . . . . . . . Part Schematics Acquired 4 | . . . . . . . . . . . . . . . 1 . . . . 1 . 1 . . 1 . . . . . . Parts Built 4 | . . . . . . . . . 1 . . . . . . . . . . 1 . . . . . . 2 . . . . Matter 548 | . . . . . . . . . 190 . . . . . . . . . . 102 . . . . . . 256 . . . . Time 114 | . . . . . . . . . 47 . . . . . . . . . . 25 . . . . . . 42 . . . . Total Part Build Rating 22 | . . . . . . . . . 5 . . . . . . . . . . 1 . . . . . . 16 . . . . Parts Repaired 18 | . 1 . . . 1 . 3 . 3 . . . . . . . . 3 . . . 1 . . 1 . 5 . . . . Time 1253 | . 26 . . . 44 . 102 . 126 . . . . . . . . 352 . . . 162 . . 68 . 373 . . . . Parts Recycled . | . . . . . . . . . . . . . . . . . . . . . . . . . . . . . . . . Recycled Matter 260 | . . . . . . . 260 . . . . . . . . . . . . . . . . . . . . . . . . Retrieved Matter 260 | . . . . . . . 260 . . . . . . . . . . . . . . . . . . . . . . . . Retrieved Components . | . . . . . . . . . . . . . . . . . . . . . . . . . . . . . . . . Parts Scanalyzed 2 | . . . . . . . . . . . . . . . . . . . . . . 2 . . . . . . . . . Part Schematics Acquired 1 | . . . . . . . . . . . . . . . . . . . . . . 1 . . . . . . . . . Parts Damaged . | . . . . . . . . . . . . . . . . . . . . . . . . . . . . . . . . Bothacking | -11 -10 -10 -10 -9 -8 -8 -8 -8 -7 -7 -6 -6 -6 -6 -6 -5 -5 -5 -5 -5 -5 -4 -4 -3 -3 -2 -2 -2 -1 -1 -1 ------------ Run | Scr Mat Min Exi Min Mat Gar Mat Gar Fac Gar Fac Ext Cet Arc Hub Fac Was Fac Gar Fac Gar Fac Gar Res Qua Res Tes Sec Acc Com Ac0 Used RIF Installer 6 | . . . . . . 1 . 1 . 1 . . . . . . . . 1 . 1 . 1 . . . . . . . . Coupler Efficiency 1 | . . . . . . . . . . . . . . . . . . . 1 . . . . . . . . . . . . Command Fork 1 | . . . . . . . . . . . . . . . . . . . . . 1 . . . . . . . . . . Threat Obfuscator 1 | . . . . . . . . 1 . . . . . . . . . . . . . . . . . . . . . . . Signal Jammer 1 | . . . . . . . . . . . . . . . . . . . . . . . 1 . . . . . . . . Zone Cloak 1 | . . . . . . . . . . 1 . . . . . . . . . . . . . . . . . . . . . Robots Hacked 11 | . . . . . . . . . . . 1 . . . . . . . . . . 1 . 3 1 2 . 2 1 . . Non-combat 8 | . . . . . . . . . . . 1 . . . . . . . . . . 1 . 1 1 2 . 1 1 . . Combat 3 | . . . . . . . . . . . . . . . . . . . . . . . . 2 . . . 1 . . . Robot Hacks Applied 22 | . . . . . . . . . . . 3 . . . . . . . . . . 1 . 5 3 4 . 3 3 . . purge_threat 16 | . . . . . . . . . . . 2 . . . . . . . . . . . . 3 3 3 . 2 3 . . locate_prototypes 1 | . . . . . . . . . . . . . . . . . . . . . . . . . . . . 1 . . . streamctrl_low 1 | . . . . . . . . . . . . . . . . . . . . . . 1 . . . . . . . . . formatsys_low 2 | . . . . . . . . . . . 1 . . . . . . . . . . . . . . 1 . . . . . formatsys_high 2 | . . . . . . . . . . . . . . . . . . . . . . . . 2 . . . . . . . Relay Couplers Released 35 | . . . . . . 5 . . . 5 . . . . 5 . . . 4 . . . 6 . 2 2 3 1 2 . . Machine Destruction 30 | . . . . . . 5 . . . 5 . . . . 1 . . . 4 . . . 6 . 2 2 3 . 2 . . Programmers 5 | . . . . . . . . . . . . . . . 4 . . . . . . . . . . . . 1 . . . Attached 9 | . . . . . . . . . . 1 1 . . . . . . . . . . 1 . 2 1 1 . 1 1 . . Robots Rewired 10 | . . . . . . . . . . . . 10 . . . . . . . . . . . . . . . . . . . Allies Hacked 2 | . . . . . . . . . . . . . . . . . . . . . . . . 1 . . . 1 . . . Hacks Repelled . | . . . . . . . . . . . . . . . . . . . . . . . . . . . . . . . . Allies | -11 -10 -10 -10 -9 -8 -8 -8 -8 -7 -7 -6 -6 -6 -6 -6 -5 -5 -5 -5 -5 -5 -4 -4 -3 -3 -2 -2 -2 -1 -1 -1 -------- Run | Scr Mat Min Exi Min Mat Gar Mat Gar Fac Gar Fac Ext Cet Arc Hub Fac Was Fac Gar Fac Gar Fac Gar Res Qua Res Tes Sec Acc Com Ac0 Total Allies 41 | . . . . 3 . . . . . . 1 25 . . . . . . . . . 1 . 2 5 1 . 3 . . . Largest Group 17 | . . . . 3 3 . . . . . 1 17 16 7 . . . . . . . 1 . 2 6 1 1 3 . . . Highest-Rated Group 592 | . . . . 40 40 . . . . . 26 592 573 176 . . . . . . . 11 . 128 282 30 29 90 . . . Highest-Rated Ally 156 | . . . . 16 16 . . . . . 26 156 156 37 . . . . . . . 11 . 64 64 30 29 30 . . . Total Orders 15 | . . . . . . . . . . . . . 2 1 . . . . . . . 1 . . . 1 1 . . . 9 STAY 2 | . . . . . . . . . . . . . 1 1 . . . . . . . . . . . . . . . . . FOLLOW 1 | . . . . . . . . . . . . . 1 . . . . . . . . . . . . . . . . . . AID 3 | . . . . . . . . . . . . . . . . . . . . . . 1 . . . 1 1 . . . . EXPLORE 6 | . . . . . . . . . . . . . . . . . . . . . . . . . . . . . . . 6 RETURN 3 | . . . . . . . . . . . . . . . . . . . . . . . . . . . . . . . 3 Ally Attacks 405 | . . . . . 20 . . . . . . 169 108 20 . . . . . . . . . 9 51 . . 28 . . . Total Damage 8812 | . . . . . 244 . . . . . . 3285 2509 433 . . . . . . . . . 399 1541 . . 401 . . . Kills 70 | . . . . . 3 . . . . . . 30 22 3 . . . . . . . . . 1 10 . . 1 . . . Allies Corrupted 1 | . . . . . . . . . . . . . . . . . . . . . . . . 1 . . . . . . . Allies Melted . | . . . . . . . . . . . . . . . . . . . . . . . . . . . . . . . . Intel | -11 -10 -10 -10 -9 -8 -8 -8 -8 -7 -7 -6 -6 -6 -6 -6 -5 -5 -5 -5 -5 -5 -4 -4 -3 -3 -2 -2 -2 -1 -1 -1 ------- Run | Scr Mat Min Exi Min Mat Gar Mat Gar Fac Gar Fac Ext Cet Arc Hub Fac Was Fac Gar Fac Gar Fac Gar Res Qua Res Tes Sec Acc Com Ac0 Robot Analysis Total 4 | . 3 . . . . . . . . . 1 . . . . . . . . . . . . . . . . . . . . Derelict Logs Recovered 2 | . . 1 . 1 . . . . . . . . . . . . . . . . . . . . . . . . . . . Drone Launches 8 | . . . . . . . . . . . . . . . . . . . . . . . . . . . . . . . 8 Drone Recoveries 4 | . . . . . . . . . . . . . . . . . . . . . . . . . . . . . . . 4 Exploration | -11 -10 -10 -10 -9 -8 -8 -8 -8 -7 -7 -6 -6 -6 -6 -6 -5 -5 -5 -5 -5 -5 -4 -4 -3 -3 -2 -2 -2 -1 -1 -1 ------------- Run | Scr Mat Min Exi Min Mat Gar Mat Gar Fac Gar Fac Ext Cet Arc Hub Fac Was Fac Gar Fac Gar Fac Gar Res Qua Res Tes Sec Acc Com Ac0 Turns Passed 47824 | 66 1461 231 1846 940 589 630 1284 514 1007 863 1025 2000 557 139 2290 81 335 1112 366 956 475 902 616 899 3200 1969 3326 2703 974 13272 1196 Spaces Moved 19538 | 39 801 126 1010 325 257 318 547 277 475 444 506 909 299 64 1133 43 119 439 165 442 260 388 341 371 1175 948 1232 1440 475 3651 519 Core 239 | . . . . . . . . . . . . . . . . . . . . . . . . . . . . . . 195 44 Treads 19116 | . 666 126 1010 325 257 318 547 277 475 444 506 909 299 64 1133 43 119 439 165 442 260 388 341 371 1175 948 1232 1432 475 3456 474 Legs 175 | 39 135 . . . . . . . . . . . . . . . . . . . . . . . . . . . . . 1 Wheels . | . . . . . . . . . . . . . . . . . . . . . . . . . . . . . . . . Hover . | . . . . . . . . . . . . . . . . . . . . . . . . . . . . . . . . Flight . | . . . . . . . . . . . . . . . . . . . . . . . . . . . . . . . . Fastest Speed 50 | 120 120 160 160 260 160 160 160 160 160 160 162 162 160 160 160 160 160 160 160 160 160 160 160 160 161 160 160 151 151 143 50 Average Speed 199 | 120 153 160 165 260 160 175 160 160 160 160 162 162 160 160 160 160 160 160 160 160 160 162 160 192 216 167 208 154 151 325 141 Slowest Speed 4550 | 120 160 160 260 360 160 260 260 160 160 160 162 162 162 160 160 160 160 160 160 160 160 260 160 263 280 264 270 263 151 4550 150 Overloaded Moves . | . . . . . . . . . . . . . . . . . . . . . . . . . . . . . . . . Propulsion Burnouts . | . . . . . . . . . . . . . . . . . . . . . . . . . . . . . . . . Robots Hopped . | . . . . . . . . . . . . . . . . . . . . . . . . . . . . . . . . Cave-ins Triggered . | . . . . . . . . . . . . . . . . . . . . . . . . . . . . . . . . Teleports 1 | . . . . . . . . . . . . . . . . . . . . . . . . . . . . . . 1 . Spacefolds 2 | . . . . . . . . . . . . . . . . . . . . . . . . . . . . 2 . . . Exploration Rate (%) 49 | 4 98 20 89 64 22 42 50 64 16 69 12 87 64 74 80 2 77 12 35 19 56 12 48 13 98 32 90 83 17 90 52 Regions Visited 31 Branch Regions 12 Pre-discovered Areas 3 | . . 1 1 1 . . . . . . . . . . . . . . . . . . . . . . . . . . . Known Exits Taken 7 | . . . . . 1 . 1 . 1 . . . . . . . . 1 . 1 . 1 . 1 . . . . . . . Unknown Exits Taken 16 | 1 1 1 1 1 . . . . . . 1 1 1 1 1 . . . . . . . . . 1 1 1 1 1 1 . Scrap Searched 1 | . . . . 1 . . . . . . . . . . . . . . . . . . . . . . . . . . . Spaces Dug 237 | . 7 . . . . . 2 17 3 . 5 3 . . 28 3 3 19 . 9 18 . 9 5 16 1 4 2 1 29 53 Terrain Destroyed 3507 | . 28 5 13 15 . 15 139 33 35 5 27 13 10 5 977 3 4 70 5 69 112 98 100 103 42 120 11 2 47 172 1229 Melee 29 | . . . . . . . 2 . 3 . 5 3 . . 11 . . 2 . . . . . . . 1 . 1 1 . . Projectile 289 | . . . . . . . . . . . . . . 5 101 3 4 32 3 32 2 6 . 11 25 5 11 1 . 8 40 AOE 3189 | . 28 5 13 15 . 15 137 33 32 5 22 10 10 . 865 . . 36 2 37 110 92 100 92 17 114 . . 46 164 1189 Terrain Rammed . | . . . . . . . . . . . . . . . . . . . . . . . . . . . . . . . . Walls Destroyed . | . . . . . . . . . . . . . . . . . . . . . . . . . . . . . . . . Machines Disabled . | . . . . . . . . . . . . . . . . . . . . . . . . . . . . . . . . Actions | -11 -10 -10 -10 -9 -8 -8 -8 -8 -7 -7 -6 -6 -6 -6 -6 -5 -5 -5 -5 -5 -5 -4 -4 -3 -3 -2 -2 -2 -1 -1 -1 --------- Run | Scr Mat Min Exi Min Mat Gar Mat Gar Fac Gar Fac Ext Cet Arc Hub Fac Was Fac Gar Fac Gar Fac Gar Res Qua Res Tes Sec Acc Com Ac0 Total 26605 | 45 959 140 1147 369 397 361 843 315 671 525 633 1341 371 86 1383 53 216 742 236 584 295 618 386 521 1719 1287 1947 1914 663 4882 956 Wait 2873 | . 52 1 41 2 77 9 139 8 117 9 30 244 11 9 80 . 11 190 33 30 1 122 10 34 234 85 398 93 31 693 79 Move 19506 | 38 800 125 1009 324 256 317 546 276 475 443 505 908 298 63 1132 43 118 439 164 442 259 388 340 370 1174 947 1231 1433 474 3650 519 Hop . | . . . . . . . . . . . . . . . . . . . . . . . . . . . . . . . . Pick Up 328 | . 23 1 25 6 12 6 11 . 8 7 10 6 10 . 2 . 5 4 2 2 1 17 1 6 28 17 18 22 4 33 41 Fast Attach 304 | 1 4 . 3 . 6 . 15 1 8 4 3 4 8 . 1 . 3 3 1 3 1 4 3 7 23 23 36 30 5 78 26 Attach 202 | . . . 6 2 2 2 4 1 5 3 4 1 1 . 2 2 12 6 . 2 . 9 1 9 12 18 12 23 9 34 20 Detach 146 | . . . 2 . . . 3 . 3 . 1 2 1 . . . 12 1 . 1 2 2 1 7 15 16 15 17 7 31 7 Swap 352 | . 13 1 6 6 2 4 25 5 11 11 21 22 5 3 22 . 3 7 4 8 6 16 3 11 24 19 30 31 8 21 4 Drop 514 | . 19 . 14 2 15 2 29 1 8 8 13 10 20 . 4 1 7 2 1 5 . 8 1 7 50 38 45 36 7 110 51 Fire 2070 | 6 48 8 5 15 27 21 69 22 24 39 33 59 14 11 121 7 45 80 31 89 25 52 26 70 140 122 159 226 116 152 208 Melee 140 | . . . 35 1 . . 2 . 6 1 9 14 3 . 12 . . 2 . . . . . . 17 1 3 3 1 30 . Ram . | . . . . . . . . . . . . . . . . . . . . . . . . . . . . . . . . Kick . | . . . . . . . . . . . . . . . . . . . . . . . . . . . . . . . . Crush 88 | . . 4 . 11 . . . . 6 . 4 1 . . 7 . . 8 . 2 . . . . 2 1 . . 1 40 1 Escape Stasis 7 | . . . . . . . . 1 . . . . . . . . . . . . . . . . . . . . . 6 . Rewire 74 | . . . . . . . . . . . . 70 . . . . . . . . . . . . . . . . . 4 . Trap 1 | . . . 1 . . . . . . . . . . . . . . . . . . . . . . . . . . . . Miscellaneous . | . . . . . . . . . . . . . . . . . . . . . . . . . . . . . . . . Route ------- -11/Scrapyard -10/Materials (discovered 4 exits: [*Mat x3] / [*Min]) -10/Mines (discovered 2 exits: [*Mat] / *Exi) -10/Exiles -9/Mines -8/Materials (discovered 2 exits: *Fac / Gar) -8/Garrison -8/Materials (discovered 2 exits: *Fac / Gar) -8/Garrison (discovered 3 exits: *Fac x3) -7/Factory -7/Garrison (discovered 3 exits: *Fac x3) -6/Factory (discovered 3 exits: [*Fac] / [*Low] / *Ext) -6/Extension (discovered 2 exits: [*Fac] / [*Cet]) -6/Cetus (discovered 2 exits: [*Fac] / [*Arc]) -6/Archives (discovered 2 exits: *Hub x2) -6/Hub_04(d) (discovered 4 exits: [*Fac x4]) -5/Factory -5/Waste -5/Factory (discovered 2 exits: *Fac / Gar) -5/Garrison -5/Factory (discovered 3 exits: *Upp x2 / Gar) -5/Garrison (discovered 2 exits: *Fac x2) -4/Factory (discovered 2 exits: [*Upp] / Gar) -4/Garrison -3/Research (discovered 4 exits: Arm / *Qua x2 / Gar) -3/Quarantine -2/Research (discovered 2 exits: *Tes x2) -2/Testing (discovered 2 exits: *Acc / *Sec) -2/Section 7 -1/Access -1/Command (discovered 3 exits: [*Sur x2] / [*Ac0]) -1/Access_0 History --------- Turn | Location | Event 1 | -11/Scrapyard | Discovered new exit (range 3) 67 | -11/Scrapyard | Entered Materials 231 | -10/Materials | Destroyed 8 combat bots 265 | -10/Materials | Repaired Lgt. Assault Rifle 273 | -10/Materials | Discovered new exit (range 11) 301 | -10/Materials | Build established: Mutant 598 | -10/Materials | Discovered new exit (range 16) 615 | -10/Materials | Central database locked down 831 | -10/Materials | Discovered new exit (range 13) 1408 | -10/Materials | Discovered new exit (range 16) 1528 | -10/Materials | Entered Mines 1589 | -10/Mines | Learned location of Zion (-6) 1624 | -10/Mines | Discovered new exit (range 4) 1751 | -10/Mines | Deemed a non-threat by the Exiles lab entrance 1751 | -10/Mines | Discovered new exit (range 5) 1759 | -10/Mines | Entered Exiles 1798 | -10/Exiles | Met 8R-AWN 1825 | -10/Exiles | Met EX-HEX 1907 | -10/Exiles | Met EX-DEC 1940 | -10/Exiles | Visited The Gauntlet 2246 | -10/Exiles | Met EX-BIN 2270 | -10/Exiles | Aligned with FarCom system 2271 | -10/Exiles | Given EX-Vault access code 2308 | -10/Exiles | Opened EX-Vault 2366 | -10/Exiles | Warned to stay clear of 0b10 Research branches 2398 | -10/Exiles | Found Longsword +1 2405 | -10/Exiles | Found Latent Energy Streamer 2409 | -10/Exiles | Found PSU Rigger 2556 | -10/Exiles | Discovered new exit (range 14) 3271 | -10/Exiles | Attacked by the Exiles 3390 | -10/Exiles | Core integrity fell below 50% 3408 | -10/Exiles | Core integrity fell below 20% 3447 | -10/Exiles | Destroyed 8R-AWN 3458 | -10/Exiles | Found Prototype Processor 3470 | -10/Exiles | Lost 4 parts (2n2w) 3605 | -10/Exiles | Stole three prototypes: PSU Rigger, Latent Energy Streamer, Longsword +1 3605 | -10/Exiles | Entered Mines 3847 | -9/Mines | A weapon hastily lodged in a ceiling crevice suddenly fell to the ground 4157 | -9/Mines | Assisted by bots powering up and referring to "LRC-V3" 4417 | -9/Mines | Discovered new exit (range 15) 4418 | -9/Mines | YI-UF0 nonchalantly dropped a Grenade Launcher on the ground 4474 | -9/Mines | Destroyed YI-UF0 4478 | -9/Mines | Found Prototype Launcher 4479 | -9/Mines | Identified YI-UF0's Doublenader 4545 | -9/Mines | Entered Materials 4545 | -8/Materials | Accompanied by 3 allies 4545 | -8/Materials | Evolved 4 slots: Propulsion x2, Utility x2 4546 | -8/Materials | Identified Exp. Targeting Computer 4995 | -8/Materials | Repaired Broken Autogun 5011 | -8/Materials | Garrison activated, responded to threat 5104 | -8/Materials | Discovered new exit (range 14) 5110 | -8/Materials | Identified exit to Garrison 5134 | -8/Materials | Entered Garrison 5190 | -8/Garrison | Triggered checkpoint 5357 | -8/Garrison | Discovered new exit (range 10) 5381 | -8/Garrison | Installed Relay Interface Framework 5502 | -8/Garrison | Triggered checkpoint 5543 | -8/Garrison | Garrison Relay disabled 5577 | -8/Garrison | Build established: Scavenger-Mutant 5764 | -8/Garrison | Entered Materials 5844 | -8/Materials | Repaired Imp. Treads 5871 | -8/Materials | Repaired Lgt. Treads 6506 | -8/Materials | Build established: Mutant 6600 | -8/Materials | Discovered new exit (range 11) 6918 | -8/Materials | Repaired Med. Treads 6964 | -8/Materials | First assault squad dispatched 7024 | -8/Materials | Garrison activated, responded to threat 7040 | -8/Materials | Identified exit to Garrison 7048 | -8/Materials | Entered Garrison 7144 | -8/Garrison | Triggered checkpoint 7171 | -8/Garrison | Triggered checkpoint 7237 | -8/Garrison | Discovered new exit (range 10) 7381 | -8/Garrison | Discovered new exit (range 13) 7458 | -8/Garrison | Triggered checkpoint 7532 | -8/Garrison | Discovered new exit (range 10) 7554 | -8/Garrison | Expanded RIF knowledge: Threat Obfuscation 7562 | -8/Garrison | Entered Factory 7562 | -7/Factory | Evolved 2 slots: Power x1, Utility x1 7806 | -7/Factory | Repaired Med. Treads 7998 | -7/Factory | Repaired Med. Treads? 8069 | -7/Factory | Repaired Hvy. Armor Plating 8523 | -7/Factory | Fabricated Triangulator (x1) 8569 | -7/Factory | Identified exit to Garrison 8569 | -7/Factory | Entered Garrison 8699 | -7/Garrison | Triggered checkpoint 8708 | -7/Garrison | Triggered checkpoint 8767 | -7/Garrison | Discovered new exit (range 9) 8863 | -7/Garrison | Build established: Scavenger-Mutant 8934 | -7/Garrison | Discovered new exit (range 10) 8995 | -7/Garrison | Triggered checkpoint 9061 | -7/Garrison | Discovered new exit (range 10) 9085 | -7/Garrison | Expanded RIF knowledge: Zone Cloak 9116 | -7/Garrison | Triggered checkpoint 9190 | -7/Garrison | Garrison Relay disabled 9432 | -7/Garrison | Entered Factory 9432 | -6/Factory | Evolved 2 slots: Propulsion x1, Utility x1 9492 | -6/Factory | Build established: Bothacker-Mutant 9878 | -6/Factory | Build established: Mutant 10229 | -6/Factory | Discovered new exit (range 10) 10305 | -6/Factory | Discovered new exit (range 12) 10429 | -6/Factory | Discovered new exit (range 16) 10457 | -6/Factory | Entered Extension 10721 | -6/Extension | Rescued a captive Derelict 10721 | -6/Extension | Rescued a captive Derelict 10897 | -6/Extension | Rescued A7 10960 | -6/Extension | Rescued a captive Derelict 10961 | -6/Extension | Rescued a captive Derelict 10989 | -6/Extension | Rescued a captive Derelict 10991 | -6/Extension | Rescued a captive Derelict 11114 | -6/Extension | Rescued a captive Derelict 11115 | -6/Extension | Rescued a captive Derelict 11609 | -6/Extension | Build established: Scavenger-Mutant 11786 | -6/Extension | Spotted B-75 Beast 11794 | -6/Extension | Destroyed B-75 Beast 11803 | -6/Extension | Spotted B-75 Beast 11813 | -6/Extension | Allies destroyed B-75 Beast 11832 | -6/Extension | Disrupted transfer network 11982 | -6/Extension | Rescued a captive Derelict 11983 | -6/Extension | Rescued a captive Derelict 12045 | -6/Extension | Rescued a captive Derelict 12045 | -6/Extension | Rescued a captive Derelict 12238 | -6/Extension | Rescued a captive Derelict 12239 | -6/Extension | Rescued a captive Derelict 12414 | -6/Extension | Discovered new exit (range 10) 12416 | -6/Extension | Discovered new exit (range 6) 12457 | -6/Extension | Entered Cetus 12457 | -6/Cetus | Accompanied by 16 allies (A7) 12462 | -6/Cetus | Acquired a Cetus Manufacturing Module code from A7 12479 | -6/Cetus | Spotted Cetus Guard 12479 | -6/Cetus | Spotted Cetus Guard 12483 | -6/Cetus | Spotted Cetus Guard 12486 | -6/Cetus | Allies destroyed Cetus Guard 12486 | -6/Cetus | Spotted Cetus Guard 12494 | -6/Cetus | Allies destroyed Cetus Guard 12508 | -6/Cetus | Destroyed Cetus Guard 12509 | -6/Cetus | Cetus Manufacturing Module disabled 12510 | -6/Cetus | Allies destroyed Cetus Guard 12632 | -6/Cetus | Build established: Commander-Mutant 12740 | -6/Cetus | Discovered new exit (range 15) 12773 | -6/Cetus | Spotted Cetus Guard 12773 | -6/Cetus | Spotted Cetus Guard 12774 | -6/Cetus | Spotted Cetus Guard 12774 | -6/Cetus | Spotted Cetus Guard 12779 | -6/Cetus | Allies destroyed Cetus Guard 12784 | -6/Cetus | Allies destroyed Cetus Guard 12791 | -6/Cetus | Allies destroyed Cetus Guard 12793 | -6/Cetus | Allies destroyed Cetus Guard 12794 | -6/Cetus | Discovered new exit (range 16) 12806 | -6/Cetus | Met Revision 17 12987 | -6/Cetus | Destroyed A7 12989 | -6/Cetus | Extracted ID and sensor layout for unrecognized location from A7's data core 13014 | -6/Cetus | Entered Archives 13014 | -6/Archives | Accompanied by 7 allies 13094 | -6/Archives | Discovered new exit (range 15) 13095 | -6/Archives | Build established: Scavenger-Mutant 13110 | -6/Archives | Discovered new exit (range 16) 13153 | -6/Archives | Entered Hub_04(d) 13733 | -6/Hub_04(d) | Discovered new exit (range 3) 13951 | -6/Hub_04(d) | Discovered new exit (range 12) 14139 | -6/Hub_04(d) | Spotted B-75 Beast 14676 | -6/Hub_04(d) | Identified exit to Garrison 14889 | -6/Hub_04(d) | Discovered new exit (range 15) 15058 | -6/Hub_04(d) | Network Hub disabled 15062 | -6/Hub_04(d) | Network Hub disabled 15079 | -6/Hub_04(d) | Disrupted transfer network 15394 | -6/Hub_04(d) | Discovered new exit (range 5) 15439 | -6/Hub_04(d) | Network Hub disabled 15439 | -6/Hub_04(d) | Network Hub disabled 15443 | -6/Hub_04(d) | Entered Factory 15443 | -5/Factory | Evolved 2 slots: Propulsion x1, Utility x1 15509 | -5/Factory | Spotted B-75 Beast 15524 | -5/Factory | Sucked down chute 15524 | -5/Factory | Entered Waste 15539 | -5/Waste | EMP discharged 15545 | -5/Waste | Spotted C-40 Crusher 15548 | -5/Waste | Spotted C-40 Crusher 15580 | -5/Waste | Destroyed C-40 Crusher 15587 | -5/Waste | Found Damper Plating 15594 | -5/Waste | Spotted C-40 Crusher 15616 | -5/Waste | Destroyed C-40 Crusher 15621 | -5/Waste | Destroyed C-40 Crusher 15639 | -5/Waste | EMP discharged 15673 | -5/Waste | Spotted C-40 Crusher 15683 | -5/Waste | Spotted C-40 Crusher 15703 | -5/Waste | Destroyed C-40 Crusher 15707 | -5/Waste | Destroyed C-40 Crusher 15739 | -5/Waste | EMP discharged 15762 | -5/Waste | Found Damper Plating 15827 | -5/Waste | Discovered new exit (range 13) 15839 | -5/Waste | EMP discharged 15859 | -5/Waste | Entered Factory 16241 | -5/Factory | System corruption reached 10% 16280 | -5/Factory | Lost 3 parts (1u2w) 16298 | -5/Factory | Repaired Centrium Heavy Treads? 16382 | -5/Factory | Discovered new exit (range 16) 16425 | -5/Factory | Repaired Centrium Heavy Treads? 16676 | -5/Factory | Repaired Broken Centrium Heavy Treads 16822 | -5/Factory | Garrison activated, responded to threat 16971 | -5/Factory | Identified exit to Garrison 16971 | -5/Factory | Entered Garrison 16979 | -5/Garrison | Expanded RIF knowledge: Coupler Efficiency 17004 | -5/Garrison | Triggered checkpoint 17063 | -5/Garrison | Garrison Relay disabled 17146 | -5/Garrison | Triggered checkpoint 17264 | -5/Garrison | Discovered new exit (range 15) 17337 | -5/Garrison | Entered Factory 17421 | -5/Factory | Identified exit to Upper Caves 17900 | -5/Factory | Spotted B-75 Beast 17960 | -5/Factory | Destroyed B-75 Beast 18165 | -5/Factory | Fabricated Cargo Storage Unit (x1) 18183 | -5/Factory | Garrison activated, responded to threat 18293 | -5/Factory | Identified exit to Garrison 18293 | -5/Factory | Entered Garrison 18328 | -5/Garrison | Triggered checkpoint 18379 | -5/Garrison | Destroyed 10 combat bots 18466 | -5/Garrison | Discovered new exit (range 14) 18560 | -5/Garrison | Triggered checkpoint 18649 | -5/Garrison | Triggered checkpoint 18663 | -5/Garrison | Discovered new exit (range 15) 18704 | -5/Garrison | Expanded RIF knowledge: Command Fork 18768 | -5/Garrison | Entered Factory 18768 | -4/Factory | Evolved 2 slots: Utility x2 19122 | -4/Factory | Discovered new exit (range 16) 19260 | -4/Factory | Repaired Centrium Heavy Treads 19269 | -4/Factory | Found Launcher Loader 19352 | -4/Factory | Found Quantum Capacitor 19364 | -4/Factory | Found Quantum Capacitor 19518 | -4/Factory | First assault squad dispatched 19670 | -4/Factory | Identified exit to Garrison 19670 | -4/Factory | Entered Garrison 19678 | -4/Garrison | Expanded RIF knowledge: Signal Jamming 19730 | -4/Garrison | Triggered checkpoint 19736 | -4/Garrison | Spotted B-86 Titan 19780 | -4/Garrison | Triggered checkpoint 19812 | -4/Garrison | Garrison Relay disabled 19909 | -4/Garrison | Destroyed B-86 Titan 19989 | -4/Garrison | Triggered checkpoint 20064 | -4/Garrison | Discovered new exit (range 14) 20115 | -4/Garrison | Triggered checkpoint 20286 | -4/Garrison | Entered Research 20286 | -3/Research | Evolved 2 slots: Utility x2 20358 | -3/Research | Identified exit to Garrison 20532 | -3/Research | Identified exit to Armory 20532 | -3/Research | Identified exit to Quarantine 20687 | -3/Research | Garrison activated, responded to threat 20755 | -3/Research | Destroyed 7 combat bots 21178 | -3/Research | Build established: Hauler-Mutant 21185 | -3/Research | Entered Quarantine 21185 | -3/Quarantine | Accompanied by 1 ally 21204 | -3/Quarantine | Garrison activated, responded to threat 21254 | -3/Quarantine | Destroyed 8 combat bots 21257 | -3/Quarantine | Identified exit to Garrison 21501 | -3/Quarantine | Found Alien Impact Weapon 21569 | -3/Quarantine | Cryocooling Duct disabled 21584 | -3/Quarantine | Ambient heat levels rising (+20) 21584 | -3/Quarantine | Non-combat units ordered to evacuate 21675 | -3/Quarantine | Spotted Alpha 7 21896 | -3/Quarantine | Found Alien Artifact 22022 | -3/Quarantine | Identified Phase Redirector 22049 | -3/Quarantine | Destroyed Alpha 7 22064 | -3/Quarantine | Found Prototype Ballistic Gun 22064 | -3/Quarantine | Identified Multirail 22070 | -3/Quarantine | Found Prototype Device 22070 | -3/Quarantine | Identified Exp. ECM Suite 22095 | -3/Quarantine | Found Alien Launcher 22221 | -3/Quarantine | Met incapacitated Sigix Warrior 22221 | -3/Quarantine | Lockdown squad dispatched 22232 | -3/Quarantine | Acquired the access code to the Sigix quarantine chamber 22237 | -3/Quarantine | Unlocked Sigix quarantine chamber 22401 | -3/Quarantine | Spotted Lightning 22402 | -3/Quarantine | Spotted Lightning 22404 | -3/Quarantine | Destroyed Lightning 22450 | -3/Quarantine | Destroyed Lightning 22458 | -3/Quarantine | Spotted Lightning 22469 | -3/Quarantine | Destroyed Lightning 22496 | -3/Quarantine | Found Prototype Device 22496 | -3/Quarantine | Identified EM Dispersion Field 22502 | -3/Quarantine | Found Prototype Energy Cannon 22502 | -3/Quarantine | Identified EMDS 22513 | -3/Quarantine | Found EMDS 22522 | -3/Quarantine | Found EM Dispersion Field 22570 | -3/Quarantine | Found Exp. Targeting Computer 22967 | -3/Quarantine | Found Alien Artifact 23118 | -3/Quarantine | Found Alien Energy Cannon 23118 | -3/Quarantine | Identified Core Cannon 23172 | -3/Quarantine | Found Alien Artifact 23376 | -3/Quarantine | Identified Core Reset Matrix 23376 | -3/Quarantine | Identified Subatomic Replicator 23406 | -3/Quarantine | Discovered new exit (range 21) 23974 | -3/Quarantine | Repaired Broken Centrium Heavy Treads? 24053 | -3/Quarantine | Found Alien Artifact 24385 | -3/Quarantine | Entered Research 24385 | -2/Research | Evolved 2 slots: Utility x2 24398 | -2/Research | Found Quantum Capacitor 25186 | -2/Research | Found Prototype Launcher 25294 | -2/Research | Destroyed 7 combat bots 25491 | -2/Research | Identified Mni. Smartbomb Launcher 25638 | -2/Research | Discovered new exit (range 13) 25885 | -2/Research | First assault squad dispatched 25968 | -2/Research | Destroyed 9 combat bots 26215 | -2/Research | Discovered new exit (range 4) 26354 | -2/Research | Entered Testing 26354 | -2/Testing | Accompanied by 1 ally 26361 | -2/Testing | Found EM Dispersion Field 26454 | -2/Testing | Repaired Lyr. Heavy Armor Plating 26555 | -2/Testing | Fabricated Adv. Force Field (x2) 26615 | -2/Testing | Found Prototype Processor 26615 | -2/Testing | Identified Exp. Melee Analysis Suite 26958 | -2/Testing | Garrison activated, responded to threat 27016 | -2/Testing | Spotted Striker 27016 | -2/Testing | Spotted Striker 27148 | -2/Testing | Identified Phase Armor 27412 | -2/Testing | Build established: Bothacker-Mutant 27772 | -2/Testing | Repaired Centrium Heavy Treads? 27860 | -2/Testing | Repaired Adv. Heavy Siege Treads? 27946 | -2/Testing | Repaired Adv. Heavy Siege Treads? 28047 | -2/Testing | Repaired Exp. Heat Sink 28522 | -2/Testing | Discovered new exit (range 10) 29031 | -2/Testing | Found Prototype Device 29031 | -2/Testing | Identified Exp. Hardlight Generator 29125 | -2/Testing | Found Prototype Energy Cannon 29125 | -2/Testing | Identified Disintegrator 29222 | -2/Testing | Found Prototype Energy Cannon 29222 | -2/Testing | Identified Imp. Potential Cannon 29226 | -2/Testing | Found Prototype Energy Cannon 29226 | -2/Testing | Identified Potential Cannon 29473 | -2/Testing | Identified Core Stripper 29500 | -2/Testing | Spotted Fortress 29513 | -2/Testing | Destroyed Fortress 29524 | -2/Testing | Found Prototype Device 29524 | -2/Testing | Identified Exp. Force Field 29528 | -2/Testing | Found Prototype Device 29528 | -2/Testing | Identified Thermal Barrier 29542 | -2/Testing | Found Prototype Reactor 29542 | -2/Testing | Identified Vortex Chain Reactor 29545 | -2/Testing | Found Unknown Protection 29545 | -2/Testing | Identified Hvy. Insulated Plating 29550 | -2/Testing | Found Prototype Protection 29550 | -2/Testing | Identified Centrium Heavy Armor Plating 29561 | -2/Testing | Found Vortex Chain Reactor 29599 | -2/Testing | Build established: Hauler-Mutant 29671 | -2/Testing | Discovered new exit (range 7) 29680 | -2/Testing | Entered Section 7 29813 | -2/Section 7 | Found Alien Artifact 29936 | -2/Section 7 | Found Exp. Force Field 30054 | -2/Section 7 | Spotted S7 Guard 30072 | -2/Section 7 | Destroyed S7 Guard 30083 | -2/Section 7 | Found Alien Artifact 30149 | -2/Section 7 | Core integrity fell below 50% 30175 | -2/Section 7 | Destroyed 7 combat bots 30175 | -2/Section 7 | Identified Core Physics Calibrator 30175 | -2/Section 7 | Identified Spacefold Activator 30378 | -2/Section 7 | System corruption reached 10% 30508 | -2/Section 7 | Spotted S7 Guard 30526 | -2/Section 7 | Destroyed S7 Guard 30544 | -2/Section 7 | Found Prototype Protection 30544 | -2/Section 7 | Identified Hvy. Regenerative Plating 30559 | -2/Section 7 | Found Alien Artifact 30687 | -2/Section 7 | Used Subatomic Replicator to replicate Integrated Singularity Reactor 30688 | -2/Section 7 | Installed Integrated Singularity Reactor, increased core energy generation (+20) 30692 | -2/Section 7 | Installed Integrated Singularity Reactor, increased core energy generation (+20) 30715 | -2/Section 7 | Found Integrated Dissipator 30715 | -2/Section 7 | Installed Integrated Dissipator, increased core heat dissipation (+20) 30743 | -2/Section 7 | Found Integrated Dissipator 30743 | -2/Section 7 | Installed Integrated Dissipator, increased core heat dissipation (+20) 30847 | -2/Section 7 | Spotted S7 Guard 30854 | -2/Section 7 | Destroyed S7 Guard 30913 | -2/Section 7 | Identified exit to Garrison 30939 | -2/Section 7 | Garrison activated, responded to threat 30959 | -2/Section 7 | Found Alien Artifact 31105 | -2/Section 7 | Spotted Alpha 7 31124 | -2/Section 7 | Destroyed Alpha 7 31268 | -2/Section 7 | Found Prototype Processor 31268 | -2/Section 7 | Identified Exp. Core Analyzer 31310 | -2/Section 7 | Discovered new exit (range 17) 31474 | -2/Section 7 | Spotted S7 Guard 31486 | -2/Section 7 | Destroyed S7 Guard 31500 | -2/Section 7 | Found Alien Artifact 31529 | -2/Section 7 | Spotted Executioner 31529 | -2/Section 7 | Spotted Executioner 31585 | -2/Section 7 | Spotted B-99 Colossus 31710 | -2/Section 7 | Found Alien Artifact 31710 | -2/Section 7 | Identified LRC Insulator 31710 | -2/Section 7 | Installed LRC Insulator, gained EM resistance (25) 31713 | -2/Section 7 | Found Alien Artifact 31713 | -2/Section 7 | Identified LRC Storage 31713 | -2/Section 7 | Installed LRC Storage, increased inventory capacity (+2) 31771 | -2/Section 7 | Found Alien Artifact 31773 | -2/Section 7 | Found Alien Artifact 31899 | -2/Section 7 | Destroyed B-99 Colossus 31920 | -2/Section 7 | Found Multirail 31929 | -2/Section 7 | Found Multirail 32028 | -2/Section 7 | Found Alien Artifact 32059 | -2/Section 7 | Found Alien Artifact 32210 | -2/Section 7 | Identified Matter Drive 32306 | -2/Section 7 | Identified Transdimensional Reconstructor 32306 | -2/Section 7 | Identified Core Regenerator 32306 | -2/Section 7 | Identified Integrity Redistributor (x2) 32306 | -2/Section 7 | Identified Integrated Heat Negator 32306 | -2/Section 7 | Installed Integrated Heat Negator, increased core heat dissipation (+40) 32383 | -2/Section 7 | Entered Access 32383 | -1/Access | Evolved 2 slots: Utility x2 32570 | -1/Access | Destroyed 11 combat bots 32782 | -1/Access | Energy Cycler disabled 32914 | -1/Access | Garrison activated, responded to threat 32936 | -1/Access | Found Quantum Capacitor 32967 | -1/Access | Identified exit to Garrison 33133 | -1/Access | First assault squad dispatched 33207 | -1/Access | Spotted B-99 Colossus 33297 | -1/Access | Discovered new exit (range 8) 33357 | -1/Access | Entered Command 33368 | -1/Command | Found Antimissile System 33549 | -1/Command | Spotted M Guard 33549 | -1/Command | Spotted M Guard 33549 | -1/Command | Spotted Combat Programmer 33551 | -1/Command | Spotted Combat Programmer 33561 | -1/Command | Destroyed M Guard 33565 | -1/Command | Destroyed M Guard 33611 | -1/Command | Destroyed Combat Programmer 33690 | -1/Command | Destroyed Combat Programmer 33690 | -1/Command | All MAIN.C guards destroyed 33706 | -1/Command | Found Prototype Launcher 33706 | -1/Command | Identified Hellfire Missile Launcher 33714 | -1/Command | Found Prototype Launcher 33714 | -1/Command | Identified Ragnarok Missile Launcher 33722 | -1/Command | Found Hvy. Regenerative Plating 33928 | -1/Command | Met MAIN.C 33972 | -1/Command | Destroyed MAIN.C Shell 33973 | -1/Command | MAIN.C activated Command garrisons 34031 | -1/Command | Used Integrity Redistributor, redistributed integrity from core (-389) 34056 | -1/Command | System corruption reached 10% 34081 | -1/Command | Used Integrity Redistributor, redistributed integrity from core (-301) 34082 | -1/Command | Core integrity fell below 50% 34083 | -1/Command | 0b10 Conduit disabled 34134 | -1/Command | Destroyed MAIN.C 34158 | -1/Command | Lost 6 parts (5u1w) 34166 | -1/Command | Found Prototype Device 34166 | -1/Command | Identified Beam Splitter 34349 | -1/Command | Destroyed 7 combat bots 34406 | -1/Command | Found Vortex Chain Reactor 34411 | -1/Command | Found Centrium Heavy Armor Plating 34413 | -1/Command | Used Core Regenerator, restored core integrity (+400) 34417 | -1/Command | Found Prototype Reactor 34420 | -1/Command | Found Exp. ECM Suite 34422 | -1/Command | Found Prototype Device 34422 | -1/Command | Identified Exp. Weapon Cycler 34433 | -1/Command | Found Prototype Processor 34433 | -1/Command | Identified Spectral Analyzer 34443 | -1/Command | Found Imp. Potential Cannon 35918 | -1/Command | Discovered new exit (range 13) 42339 | -1/Command | Discovered new exit (range 16) 42340 | -1/Command | Found Prototype Processor 42340 | -1/Command | Identified Exp. Target Analyzer 42396 | -1/Command | Found Multirail 42727 | -1/Command | Found Adv. Powered Armor 42802 | -1/Command | Phase Generator disabled 42921 | -1/Command | Identified Zero-point Reactor 42948 | -1/Command | Found Prototype Device 42951 | -1/Command | Identified Exp. Thermal Defense Suite 44278 | -1/Command | Spotted B-99 Colossus 44424 | -1/Command | Destroyed B-99 Colossus 44887 | -1/Command | Found Unknown Launcher 44887 | -1/Command | Identified Gamma Bomb Array 45847 | -1/Command | Build established: Mutant 46619 | -1/Command | Warped through subspace to slip node 46619 | -1/Command | Discovered new exit (range 5) 46629 | -1/Command | Entered Access_0 46631 | -1/Access_0 | Met Architect 46637 | -1/Access_0 | Architect warped through subspace 46662 | -1/Access_0 | Architect warped through subspace 46707 | -1/Access_0 | Architect warped through subspace 46740 | -1/Access_0 | Architect warped through subspace 46757 | -1/Access_0 | Architect warped through subspace 46775 | -1/Access_0 | Architect warped through subspace 46792 | -1/Access_0 | Architect warped through subspace 46810 | -1/Access_0 | Architect warped through subspace 46823 | -1/Access_0 | Architect warped through subspace 46847 | -1/Access_0 | Architect warped through subspace 46865 | -1/Access_0 | Architect warped through subspace 46868 | -1/Access_0 | A6 warped into view 46874 | -1/Access_0 | Destroyed A6 46882 | -1/Access_0 | Architect warped through subspace 46901 | -1/Access_0 | Found Prototype Protection 46901 | -1/Access_0 | Identified Exp. Powered Armor 46907 | -1/Access_0 | Architect warped through subspace 46932 | -1/Access_0 | Architect warped through subspace 46963 | -1/Access_0 | Architect warped through subspace 46992 | -1/Access_0 | Architect warped through subspace 47000 | -1/Access_0 | Subspace Access Node disabled 47028 | -1/Access_0 | Architect warped through subspace 47066 | -1/Access_0 | Architect warped through subspace 47115 | -1/Access_0 | Architect warped through subspace 47142 | -1/Access_0 | Found Exp. Powered Armor 47156 | -1/Access_0 | Architect warped through subspace 47199 | -1/Access_0 | A5 warped into view 47208 | -1/Access_0 | Architect warped through subspace 47217 | -1/Access_0 | Destroyed A5 47242 | -1/Access_0 | Architect warped through subspace 47274 | -1/Access_0 | Architect warped through subspace 47312 | -1/Access_0 | Architect warped through subspace 47318 | -1/Access_0 | Destroyed A8 47347 | -1/Access_0 | Subspace Access Node disabled 47358 | -1/Access_0 | Architect warped through subspace 47381 | -1/Access_0 | Architect warped through subspace 47404 | -1/Access_0 | Architect warped through subspace 47430 | -1/Access_0 | Architect warped through subspace 47462 | -1/Access_0 | Architect warped through subspace 47465 | -1/Access_0 | Found Exp. Powered Armor 47468 | -1/Access_0 | Found Exp. Powered Armor 47492 | -1/Access_0 | Architect warped through subspace 47521 | -1/Access_0 | Architect warped through subspace 47543 | -1/Access_0 | Architect warped through subspace 47563 | -1/Access_0 | Architect warped through subspace 47579 | -1/Access_0 | Architect warped through subspace 47625 | -1/Access_0 | Architect warped through subspace 47628 | -1/Access_0 | Lost 4 parts (1n2u1w) 47638 | -1/Access_0 | Architect warped through subspace 47648 | -1/Access_0 | Architect warped through subspace 47653 | -1/Access_0 | Found Exp. Powered Armor 47662 | -1/Access_0 | Architect warped through subspace 47694 | -1/Access_0 | Architect warped through subspace 47716 | -1/Access_0 | Architect warped through subspace 47723 | -1/Access_0 | A4 warped into view 47749 | -1/Access_0 | Destroyed A4 47772 | -1/Access_0 | Core integrity fell below 20% 47817 | -1/Access_0 | Lost 8 parts (1p2n4u1w) 47825 | -1/Access_0 | Destroyed by Architect with Modified Quantum Sheargun Last Messages --------------- 47789_ Dropped Imp. Quantum Reactor. 47789_ Dropped Exp. Powered Armor. 47791_ Penetrated by Quantum Shear. 47801_ System corrupted: Energy discharge (-259). 47807_ Acquired Prototype Leg. 47807_ Identified Hdn. Centrium Leg. 47808_ Penetrated by Quantum Shear. 47809_ Acquired Hdn. Centrium Leg. 47811_ Penetrated by Quantum Shear. 47812_ Acquired Hdn. Centrium Leg. 47813_ Hdn. Centrium Leg severed. 47814_ Acquired Hdn. Centrium Leg. 47816_ Penetrated by Quantum Shear. 47816_ Hdn. Centrium Leg severed. 47817_ Acquired Hdn. Centrium Leg. 47818_ Penetrated by Quantum Shear. 47820_ Acquired Prototype Leg. 47820_ Identified Adv. Myomer Leg. 47822_ Acquired Adv. Myomer Leg. 47825_ Acquired Prototype Ballistic Cannon. Map ----- +----------------------------------------------------+ | ????????# #?????????????????????????????????????? | | ????????# #?????????????????????????????????????? | | ????????# #?????????????????????????????????????? | | ????????# #?????????????????????????????????????? | | ????????# #?????????????????????????????????????? | | ????##### ##????????????????????????????????????? | | ????# #????????????????????????????????????? | | ????# #### #????????????????????????????????????? | | ##### #??# #????????????????????????????????????? | | #??# #????????????????????????????????????? | | #######??# #????????????????????????????????????? | | ?????????# #?????????????????????????????######## | | ?????????# #????????????????????????????## # | | ?????????# #????????????????????????????# " | | ?????????# #???###############??????????# | | ?????????# ##??# # #?????###### | | ?????????# #### ## ]] !! #?????"! " | | ???????### ## ]] !! #????"" " | | ?????? ### ## #????" | | ?????? ### # !! !! #?#### ; | | ????? ?## # !! !! ### " | | ##### ??# # ##" ;"# | | ???# ## = == # ; #### | | ????## ### = == ;;; #??? | | ?????## #?# ; #??? | | #??????# ### @] ;; ## #??? | | #??????# ## ]] ; ; ####??? | | #??????# 0; ; ;;; ####### | | ### ##?# ; ; ######### ## | | #?## ;#####?## ## | | #### ;;; ;; ;#; ;# ### | | #??????## "; | | ##??????# " | | #??????# | | "#####?## ## ## | | ### ; ######## | | ;; # ##??????## | | """# ## ###?????## | | """" ####### ## # ###???# | | #" ##### ## ##??## | | #" #?# #???## | | # ####?? ; #???##### | | #### #?????### #???# #?# | | #??### ## ##????###" ##?### ## | | #????#######????## ! ; "### | | [" " ##????# #????????# ] "# | | [% ###### ###??????##" " """ ## | | !] # # # " #??#???# = " " # ##? | | " """" ### #???# % # ######?? | | "" "" #??#" # "######?? | +----------------------------------------------------+ Best States ------------- Heat Dissipation 170 Coolant Potential 120 Energy Generation 95 Energy Capacity 1300 Matter Stores 800 Matter Capacity 800 Sight Range 24 Terrain Scan Range 16 Terrain Scan Density 10 Jamming Range 12 Additional Mass Support 25 Armor Coverage 4400 Resistance: KI 30 Resistance: TH 75 Resistance: EM 100 Core Shielding 40 Utility Shielding 66 Weapon Shielding 90 Point Defense Rating 240 Weapon Cycling 30 Melee Speed Boost 20 Phase Shifting 15 Evasion (%) 55 Targeting Accuracy 12 Target Analysis 12 Core Analysis 15 Armor Integrity Analysis 45 Recoil Reduction 6 Energy Filtering 30 Offensive Hacking 30 Defensive Hacking 10 Relay Coupler Types 54 Relay Coupler Value 2 Item Schematics ----------------- Lyr. Heavy Armor Plating | -6/Hub_04(d) | Hacked Cargo Storage Unit | -5/Factory | Hacked Adv. Weapon Cycler | -4/Factory | Scanalyzed Adv. Force Field | -3/Quarantine | Hacked Robot Schematics ------------------ None Fabricated ------------ Triangulator | x1 | -7/Factory | Preloaded Cargo Storage Unit | x1 | -5/Factory Adv. Force Field | x2 | -2/Testing Alien Tech Used ----------------- Phase Redirector Core Cannon Phase Armor Core Stripper Subatomic Replicator Integrated Singularity Reactor Integrated Dissipator Spacefold Activator LRC Insulator LRC Storage Matter Drive Integrated Heat Negator Integrity Redistributor Core Regenerator Transdimensional Reconstructor Achievements -------------- None Challenges ------------ None Game ------ Seed FrostGuidedJammer Manual? 0 Play Time 10:30:32 Cumulative 1073.9 hours Start 2021.02.13 @ 14:10:54 End 2021.02.14 @ 17:06:51 Sessions 3 Manual Loads 0 Difficulty Rogue Special Mode None Game No. 346 Rogue 346 Adventurer 0 Explorer 0 Win Type - Total 59 Types 13/17/9/3/1/2/11/2/1 Lore% 98 Gallery% 97 Achievement% 87 Wizard Run 0 Options --------- ASCII 0 Keyboard 0 Movement Numpad Keybinds 0 Fullscreen 2 Font 24/Smallcaps Map View 76x50 Tactical HUD 1 Map Filters NONE Filters NONE Steam 1 RUN: 33ba577f-45b4-4c1a-8fa9-7924f34146ca